Cogmind - Beta 9.6 @@@ ROGUE MODE // 2020.05.16 @ 21:17:24 Player: cptwinky Result: Destroyed by B-90 Cyclops with Nova Cannon Performance ------------- Evolutions (8) 4000 Regions Visited (31) 6200 Robots Destroyed (458) 2290 Value Destroyed (20986) 20986 Prototype IDs (67) 1340 Alien Tech Used (3) 600 Bonus (11095) 11095 TOTAL SCORE: 46511 Bonus ------- High Alert Combat Kills 1235 Follower Combat Kills 3450 Entered Garrisons 800 Used RIF Installer 2000 Network Hubs Disabled 200 Met Data Miner 300 Met Zhirov 300 Built Enhanced Grunts 300 A7 Reached Mainframe 300 Met R17 at Cetus 500 Met R17 at Research 2000 Scanned by Researcher 500 Friendly Fire -790 Cogmind --------- Core Integrity 0/1450 Matter 231/300 Energy 56/100 System Corruption 15% Temperature Cool (9) Movement Core (2450) Ox48 Location -2/Research Parts ------- > --- POWER (2) -------- (None) > --- PROPULSION (4) --- (None) > --- UTILITY (16) ----- High-capacity Storage Unit High-capacity Storage Unit High-capacity Storage Unit High-capacity Storage Unit Experimental Signal Interpreter Improved Targeting Computer Advanced Target Analyzer Improved Armor Integrity Analyzer Advanced Weapon Cycler Experimental Thermal Shield > --- WEAPON (2) ------- Hypervelocity Railgun Hypervelocity Railgun > --- INVENTORY (36) --- Improved Energy Well (36) Improved Matter Compressor (300) Long-range Sensor Array EM Dispersion Field Relay Coupler [Duelist] (25) Advanced Component Analysis Suite Advanced Trap Extractor Gamma Rifle Phase Gun Potential Cannon Potential Cannon Hypervelocity Multirail Perforator Advanced Datajack Remote Datajack Improved Remote Datajack Power Sword Faulty Plasma Lance Plasma Lance Segregator Trap Segregator Trap Segregator Trap EM Surge Trap EM Surge Trap EM Surge Trap Peak State ------------ > --- POWER ------------ Quantum Reactor Light Quantum Reactor > --- PROPULSION ------- Myomer Leg Myomer Leg Myomer Leg Myomer Leg > --- UTILITY ---------- Advanced Heat Sink Advanced Heat Sink High-capacity Storage Unit High-capacity Storage Unit High-capacity Storage Unit Experimental Signal Interpreter Improved Targeting Computer Advanced Target Analyzer Improved Armor Integrity Analyzer Quantum Capacitor Advanced Transmission Jammer Improved Core Shielding Layered Medium Armor Plating Experimental Thermal Shield Advanced Hacking Suite > --- WEAPON ----------- Phase Gun Hypervelocity Multirail > --- INVENTORY -------- Biometal Heavy Treads Large Storage Unit Improved Energy Well Improved Matter Compressor Long-range Sensor Array Advanced Weapon Cycler EM Dispersion Field Relay Coupler [Duelist] Advanced Component Analysis Suite Advanced Trap Extractor Potential Cannon Potential Cannon Perforator Advanced Datajack Remote Datajack Improved Remote Datajack Power Sword Kinetic Spear Segregator Trap Segregator Trap Segregator Trap EM Surge Trap EM Surge Trap EM Surge Trap [Rating: 164] Favorites ----------- Power Micro Fission Core Engine Light Angular Momentum Engine Power Core Micro Fission Core Reactor Cold Fusion Reactor Propulsion Armored Wheel Treads Light Treads Leg Enhanced Flexi-carbon Leg Wheel Armored Wheel Utility High-capacity Storage Unit Device Long-range Sensor Array Storage High-capacity Storage Unit Processor Improved Signal Interpreter Hackware Relay Coupler [NC] Protection Hardened Medium Armor Plating Weapon Cooled Particle Cannon Energy Gun Heavy EM Pulse Gun Energy Cannon Cooled Particle Cannon Ballistic Gun Improved Assault Rifle Ballistic Cannon Bore Cannon Launcher Long-range Missile Launcher Special Weapon Remote Datajack Impact Weapon Power Maul Slashing Weapon Phasing Sabre Piercing Weapon Heavy Pick Special Melee Weapon Improved Datajack Build | -11 -10 -10 -9 -9 -9 -8 -8 -7 -7 -7 -6 -6 -6 -6 -5 -5 -5 -5 -5 -5 -5 -4 -4 -4 -4 -4 -4 -3 -3 -3 -2 ------- Run | Scr Mat Min Mat Sto Gar Mat Gar Fac Low Low Fac Low Low Dat Pro Fac Gar Fac Upp Upp Zhi Pro Fac Ext Cet Arc Hub Res Tes Gar Res Slots Evolved 16 | . . . 2 . . 2 . 2 . . 2 . . . . 2 . . . . . . 2 . . . . 2 . . 2 Power . | . . . . . . . . . . . . . . . . . . . . . . . . . . . . . . . . Propulsion 2 | . . . . . . 1 . . . . . . . . . . . . . . . . 1 . . . . . . . . Utility 14 | . . . 2 . . 1 . 2 . . 2 . . . . 2 . . . . . . 1 . . . . 2 . . 2 Weapon . | . . . . . . . . . . . . . . . . . . . . . . . . . . . . . . . . Parts Attached 756 | 7 8 4 24 33 16 8 12 42 14 16 31 14 6 7 22 53 30 39 22 14 8 21 38 31 10 2 14 25 75 36 74 Power 55 | 1 1 1 2 4 . . 1 . . . . 1 . . 4 5 2 2 . . 5 . 1 2 1 . . 3 6 6 7 Engine 10 | 1 1 1 2 1 . . . . . . . 1 . . . 2 . . . . . . . . . . . . . . 1 Core 15 | . . . . . . . . . . . . . . . 2 3 1 2 . . 4 . . 1 . . . . 1 1 . Reactor 30 | . . . . 3 . . 1 . . . . . . . 2 . 1 . . . 1 . 1 1 1 . . 3 5 5 6 Propulsion 98 | 2 1 1 3 8 2 2 1 3 . . 2 . . 3 1 9 9 1 . 1 . 2 6 1 2 . 2 2 14 7 13 Treads 40 | 1 . 1 2 7 2 1 1 . . . 1 . . . . 1 4 . . . . 1 1 1 1 . 2 2 6 2 3 Leg 19 | . . . . . . . . . . . . . . 3 1 2 . . . . . . . . . . . . . 4 9 Wheel 39 | 1 1 . 1 1 . 1 . 3 . . 1 . . . . 6 5 1 . 1 . 1 5 . 1 . . . 8 1 1 Hover . | . . . . . . . . . . . . . . . . . . . . . . . . . . . . . . . . Flight . | . . . . . . . . . . . . . . . . . . . . . . . . . . . . . . . . Utility 274 | 2 2 . 6 4 4 3 1 11 3 2 21 3 3 1 6 22 7 20 8 4 2 11 15 14 6 2 8 12 26 10 35 Device 134 | . . . . . . . . 2 1 1 12 3 3 . 5 14 3 8 5 2 2 6 6 7 1 . 3 8 14 7 21 Storage 29 | 2 2 . 1 . 2 1 . 1 1 . 5 . . 1 . . . . . . . . 1 . . . 1 2 5 1 3 Processor 12 | . . . . . . . . 2 . . . . . . . 2 . 2 1 . . . 2 . . . . . 2 1 . Hackware 30 | . . . 1 . . 1 . 3 . . 2 . . . . 3 3 3 . 2 . 1 5 . 1 . 1 1 3 . . Protection 69 | . . . 4 4 2 1 1 3 1 1 2 . . . 1 3 1 7 2 . . 4 1 7 4 2 3 1 2 1 11 Artifact . | . . . . . . . . . . . . . . . . . . . . . . . . . . . . . . . . Weapon 329 | 2 4 2 13 17 10 3 9 28 11 14 8 10 3 3 11 17 12 16 14 9 1 8 16 14 1 . 4 8 29 13 19 Energy Gun 34 | 2 2 2 8 3 . . . . . . . 1 . . . . . . . . . . . . . . . . 4 4 8 Energy Cannon 63 | . . . . 1 . . . 2 5 7 2 6 1 1 1 5 3 1 4 4 . 2 4 2 1 . 1 . 9 . 1 Ballistic Gun 66 | . 1 . 2 6 5 2 5 8 2 . . . . . 1 1 5 1 4 . . 1 3 2 . . 1 5 3 2 6 Ballistic Cannon 17 | . . . . . . . . . . . . . 1 . 3 . . 2 . . . . 1 3 . . . . 6 1 . Launcher 49 | . . . 2 4 4 1 3 4 1 4 2 . 1 1 3 1 3 2 3 2 1 . 1 1 . . . 1 1 3 . Special Weapon 34 | . . . . . . . . 3 . . 1 . . . 1 7 1 4 3 1 . 3 4 2 . . 1 1 2 . . Impact Weapon 23 | . . . 1 3 1 . 1 7 1 3 2 1 . 1 1 1 . . . . . . . . . . . . . . . Slashing Weapon 11 | . 1 . . . . . . . . . . . . . . . . . . . . . . . . . 1 . 4 2 3 Piercing Weapon 13 | . . . . . . . . . . . . . . . . 1 . 3 . 2 . 2 3 1 . . . . . . 1 Special Melee Weapon 19 | . . . . . . . . 4 2 . 1 2 . . 1 1 . 3 . . . . . 3 . . . 1 . 1 . Unidentified Prototypes 27 | . . . 2 3 . 1 . . . . . 1 . 2 . 3 . . 1 . 3 . 1 1 2 . . . 6 . 1 Parts Lost 157 | . 3 . 2 6 1 . . . . . 3 . 1 1 3 7 8 3 2 2 . 5 10 2 3 . 7 2 32 19 35 Power 22 | . 1 . . 1 . . . . . . . . . . 1 . . 1 . . . . 1 . . . 1 1 7 3 5 Propulsion 39 | . . . . 2 . . . . . . 2 . . 1 . 3 3 . . 1 . 2 2 . 1 . 1 . 8 6 7 Utility 60 | . . . . 1 1 . . . . . 1 . 1 . . 3 4 2 1 1 . 1 5 . 2 . 3 1 12 6 15 Weapon 36 | . 2 . 2 2 . . . . . . . . . . 2 1 1 . 1 . . 2 2 2 . . 2 . 5 4 8 Highest Loss Streak 18 | . 1 . 1 4 1 . . . . . 2 . 1 1 2 4 5 1 1 2 . 2 3 1 3 . 7 2 9 10 18 Average Slot Usage (%) 95 | . 98 100 97 99 100 99 100 97 100 100 98 99 99 99 94 97 97 99 99 98 97 93 87 90 87 87 83 81 86 85 92 Engine 1 | . 14 14 11 2 . . . . . . . 3 6 6 2 . . 1 . . . . . . . . . . . . . Core 3 | . . . . . . . . . . . . . . . 2 11 9 5 11 11 11 11 7 5 5 5 5 2 . 2 . Reactor 4 | . . . . 8 11 9 9 7 7 7 6 6 6 6 6 . . 3 . . . . 2 5 5 5 4 2 6 4 7 Treads 6 | . 14 14 11 16 22 18 18 8 7 7 5 6 6 3 . . 11 . . . . 1 3 2 5 5 6 10 6 1 3 Leg 1 | . . . . . . . . . . . . . . 8 17 7 . . . . . . . . . . . . . 7 9 Wheel 9 | . 14 14 11 5 . 9 9 13 15 15 13 12 12 5 . 5 4 16 16 15 16 10 8 7 4 5 3 . 5 3 . Device 7 | . . . . . . . . . . . 6 12 17 15 14 16 8 5 6 3 3 3 7 11 6 5 7 19 23 10 17 Storage 23 | . 28 28 26 33 33 27 27 23 23 23 26 25 25 27 28 22 22 22 22 22 22 22 20 20 20 20 20 18 18 20 15 Processor 7 | . . . . . . . . 6 7 7 6 6 . . . 6 11 11 16 15 11 11 11 10 7 5 5 4 4 16 16 Hackware 9 | . . . 1 . . 8 9 12 15 15 13 12 12 12 9 8 12 17 5 10 16 20 15 10 7 5 5 6 10 5 3 Protection 5 | . . . 14 10 11 9 9 6 6 7 4 . . . . 4 3 3 9 5 5 1 1 8 15 22 16 7 1 1 8 Energy Gun 2 | . 14 28 18 6 . . . . . . . . . . . . . . . . . . . . . . . . 1 5 4 Energy Cannon 3 | . . . . 3 1 . . 2 8 13 10 11 9 9 4 . . . 1 8 5 3 2 3 1 5 4 . 1 . . Ballistic Gun 4 | . 9 . 2 10 19 17 17 7 6 . . . . . . . 8 5 7 . . 1 1 3 . . . 6 2 . 1 Naked Turns . | . . . . . . . . . . . . . . . . . . . . . . . . . . . . . . . . Heaviest Build 210 | 15 41 43 71 75 74 69 69 98 114 114 164 169 173 174 192 205 184 172 168 171 179 179 173 193 203 210 210 180 190 176 204 Greatest Support 180 | 10 10 10 10 40 43 12 43 24 24 24 24 24 24 84 84 84 69 36 36 36 36 70 97 70 70 28 160 163 180 56 103 Greatest Overweight (x) 46 | 1 4 4 7 7 1 5 5 5 4 4 6 7 7 14 2 18 17 4 6 6 4 14 16 6 7 7 7 1 4 5 46 Average Overweight (x) 4 | . 1 4 5 3 1 5 4 3 3 4 5 6 7 5 1 5 3 3 5 4 4 6 2 3 5 7 4 1 1 4 1 Largest Inventory Capacity 42 | 8 16 16 22 22 22 22 22 24 26 26 36 36 36 36 36 36 36 36 36 36 36 36 36 36 36 36 36 42 34 34 36 Average Capacity 30 | 6 9 16 18 22 22 22 22 23 24 26 34 36 36 36 36 36 36 36 36 36 36 36 36 36 36 36 36 34 33 34 33 Most Carried 36 | 4 16 16 22 22 22 22 22 24 25 26 36 36 36 36 36 36 36 36 36 36 36 36 36 36 36 36 36 34 34 34 36 Average Carried 29 | 2 6 15 18 21 20 21 21 22 23 24 31 35 35 35 34 35 35 35 33 34 35 35 33 35 35 35 35 31 32 32 32 Final Capacity 36 | 8 16 16 22 22 22 22 22 24 26 26 36 36 36 36 36 36 36 36 36 36 36 36 36 36 36 36 36 34 34 34 36 Final Carried 36 | 4 16 16 22 21 22 22 22 24 24 25 36 36 36 35 35 35 36 36 35 34 36 36 36 36 36 36 31 32 34 34 28 Class Distribution -------------------- 48% | Bothacker-Mutant 15% | Hauler-Mutant 14% | Scavenger-Mutant 13% | Trapper-Mutant 4% | Mutant Dominant Class ---------------- Mutant | -10/Materials Mutant | -10/Mines Trapper-Mutant | -9/Materials Hauler-Mutant | -9/Storage Hauler-Mutant | -9/Garrison Scavenger-Mutant | -8/Materials Scavenger-Mutant | -8/Garrison Bothacker-Mutant | -7/Factory Bothacker-Mutant | -7/Lower Caves Bothacker-Mutant | -7/Lower Caves Bothacker-Mutant | -6/Factory Bothacker-Mutant | -6/Lower Caves Bothacker-Mutant | -6/Lower Caves Bothacker-Mutant | -6/Data Miner Bothacker-Mutant | -5/Proximity Caves Bothacker-Mutant | -5/Factory Bothacker-Mutant | -5/Garrison Bothacker-Mutant | -5/Factory Scavenger-Mutant | -5/Upper Caves Bothacker-Mutant | -5/Upper Caves Bothacker-Mutant | -5/Zhirov Bothacker-Mutant | -4/Proximity Caves Hauler-Mutant | -4/Factory Hauler-Mutant | -4/Extension Commander-Mutant | -4/Cetus Hauler-Mutant | -4/Archives Scavenger-Mutant | -4/Hub_04(d) Trapper-Mutant | -3/Research Trapper-Mutant | -3/Testing Scavenger-Mutant | -3/Garrison Scavenger-Mutant | -2/Research Resources | -11 -10 -10 -9 -9 -9 -8 -8 -7 -7 -7 -6 -6 -6 -6 -5 -5 -5 -5 -5 -5 -5 -4 -4 -4 -4 -4 -4 -3 -3 -3 -2 ----------- Run | Scr Mat Min Mat Sto Gar Mat Gar Fac Low Low Fac Low Low Dat Pro Fac Gar Fac Upp Upp Zhi Pro Fac Ext Cet Arc Hub Res Tes Gar Res Matter Collected 13934 | 261 197 150 434 665 479 139 292 568 194 291 180 344 213 55 489 542 631 723 540 409 70 246 851 756 168 20 117 323 1651 677 1259 Remotely . | . . . . . . . . . . . . . . . . . . . . . . . . . . . . . . . . Salvage Created 20746 | 79 654 391 671 1535 609 240 359 641 365 392 629 60 379 308 726 563 1117 464 292 398 107 78 1667 600 300 81 619 302 1690 632 3798 Parts 1000 | 2 39 14 53 113 37 17 18 25 15 16 27 4 10 12 29 19 50 31 14 16 4 . 64 22 10 . 30 9 89 33 178 Haulers Intercepted 8 | . 2 . 2 4 . . . . . . . . . . . . . . . . . . . . . . . . . . . Recyclers Shooed 2 | . . . . . . . . . . . . . . . . . . . . . . . . . . . . . . . 2 Parts Field Recycled . | . . . . . . . . . . . . . . . . . . . . . . . . . . . . . . . . Retrieved Matter . | . . . . . . . . . . . . . . . . . . . . . . . . . . . . . . . . Parts Self-Destructed 73 | . . . . . . . . . 8 13 . . 10 . 14 . . . 7 16 . 5 . . . . . . . . . Prevented 31 | . . . . . . . . . 6 4 . . . . 9 . . . 6 3 3 . . . . . . . . . . Kills | -11 -10 -10 -9 -9 -9 -8 -8 -7 -7 -7 -6 -6 -6 -6 -5 -5 -5 -5 -5 -5 -5 -4 -4 -4 -4 -4 -4 -3 -3 -3 -2 ------- Run | Scr Mat Min Mat Sto Gar Mat Gar Fac Low Low Fac Low Low Dat Pro Fac Gar Fac Upp Upp Zhi Pro Fac Ext Cet Arc Hub Res Tes Gar Res Combat Hostiles Destroyed 382 | . 14 8 13 33 14 7 11 13 6 14 13 . 7 4 21 9 23 12 12 13 . 1 29 6 4 1 7 7 26 17 37 Melee 14 | . 2 . . . . . . 1 . . . . . . 2 1 . . . . . . . . . . . . 3 . 5 Guns 114 | . 10 7 8 14 4 6 6 4 1 . . . . . . . 9 2 2 . . . 3 . . . 2 3 6 5 22 Cannons 49 | . . . . 3 1 . . 1 2 3 7 . 3 . 3 3 1 1 2 3 . . 4 2 . . 1 . 9 . . AOE 145 | . 2 . 5 16 9 1 5 7 2 10 6 . 3 . 13 . 11 8 7 10 . . 13 . . . . 4 4 9 . Classes Destroyed 21 | 1 6 . 3 . . . . 1 2 . 1 1 1 . 1 . . . 2 . . . . . . . . . . . 2 Worker 22 | . 1 . 1 2 . . . . . . 3 . . . . 1 . 3 . . . . 4 . . . 2 1 2 . 2 Builder 11 | . . . 1 2 . . . . . . 1 . . . . . . 2 . . . . 3 . . . . . 2 . . Tunneler 1 | . . . . . . . . . . . . . . . . . . . . . . . . . . . . . . . 1 Hauler 8 | . 2 . 2 4 . . . . . . . . . . . . . . . . . . . . . . . . . . . Recycler 7 | 1 . . . . . . . 1 . . . . . . . . . 1 . . . . . 1 . . . . . . 3 Minesweeper 1 | . . . . . . . . . 1 . . . . . . . . . . . . . . . . . . . . . . Operator 8 | . 2 . 2 . . . . . . . . . . . . 2 . . . . . . . . . . 2 . . . . Watcher 13 | . 2 . 2 2 . . . . . . 1 . . . . 1 . . . . . . 1 . . . . . 2 1 1 Swarmer 125 | . 6 . 3 8 6 4 . 6 . 8 3 . . . 9 . 17 8 9 6 . . 13 . . . . 4 7 8 . Saboteur 1 | . . . . . . . . . . . . . . . 1 . . . . . . . . . . . . . . . . Grunt 121 | . 8 8 7 14 5 . 9 4 4 5 4 . 6 . 5 2 3 . . 2 . . 13 . . . 2 . 6 3 11 Brawler 8 | . . . 1 . . . . . . 1 . . . . 3 . . . . 2 . . 1 . . . . . . . . Duelist 4 | . . . . . . . . . . . . . 1 . . . . . . . . . . . . . 1 . 1 1 . Researcher 3 | . . . . . . . . . . . . 1 . . . . . . . . . . . . . . . . 2 . . Sentry 50 | . . . 2 11 3 3 2 1 1 . 2 . . . 1 2 2 2 . . . . . 4 . 1 4 3 3 1 2 Hunter 32 | . . . . . . . . . . . 2 . . . 1 2 1 . 2 3 . 1 1 2 . . . . 3 2 12 Programmer 30 | . . . . . . . . 2 . . 2 . . . 1 3 . 2 . . . . 1 . . . . . 6 2 11 Q-Series 1 | . . . . . . . . . . . . . . . . . . . . . . . . . . . . . . . 1 Behemoth 1 | . . . . . . . . . . . . . . . . . . . 1 . . . . . . . . . . . . Cetus Guard 4 | . . . . . . . . . . . . . . . . . . . . . . . . . 4 . . . . . . Enhanced Grunt 4 | . . . . . . . . . . . . . . 4 . . . . . . . . . . . . . . . . . Packrat 1 | . . . . . . . . . . . . . . . 1 . . . . . . . . . . . . . . . . Samaritan 1 | . . . . . . . . . . . . . . . . . . . 1 . . . . . . . . . . . . Mutant 1 | . . . . . . . . . 1 . . . . . . . . . . . . . . . . . . . . . . Best Kill Streak 19 | 1 5 2 5 15 5 4 7 3 4 4 4 . 4 4 8 2 9 5 4 7 . 1 19 2 4 1 4 5 9 11 10 Combat Bots Only 14 | . 4 2 4 13 5 4 7 3 4 4 3 . 4 4 8 2 9 4 4 7 . 1 14 2 4 1 3 5 5 10 5 Max Kills in Single Turn 7 | 1 1 1 3 3 4 1 1 3 1 2 4 1 2 1 3 1 6 4 3 3 . 1 3 1 1 1 1 2 7 4 2 Gunslinging 1 | . . . 1 . . . . . . . . . . . . . 1 . . . . . . . . . . . . . . Exploded 6 | . 1 . 2 3 4 1 1 3 1 2 3 . 2 . 3 . 6 4 3 3 . . 2 . . . . 2 3 4 . Melee 1 | . 1 . . . . . . 1 . . . . . . 1 1 . . . . . . . . . . . . 1 . 1 Uniques/NPCs Destroyed . | . . . . . . . . . . . . . . . . . . . . . . . . . . . . . . . . Combat | -11 -10 -10 -9 -9 -9 -8 -8 -7 -7 -7 -6 -6 -6 -6 -5 -5 -5 -5 -5 -5 -5 -4 -4 -4 -4 -4 -4 -3 -3 -3 -2 -------- Run | Scr Mat Min Mat Sto Gar Mat Gar Fac Low Low Fac Low Low Dat Pro Fac Gar Fac Upp Upp Zhi Pro Fac Ext Cet Arc Hub Res Tes Gar Res Damage Taken 40026 | . 370 264 512 1581 374 408 531 767 461 474 566 . 399 72 944 1588 1271 676 731 578 . 892 2492 786 399 239 3120 893 7945 2285 8408 Core 5175 | . 34 46 25 246 91 62 77 179 48 55 46 . 14 . 195 196 135 79 89 42 . 115 369 155 . . 280 53 780 314 1450 Absorbed by Shields 1572 | . . . . . 3 . 34 . . . . . 145 25 142 171 378 . 19 . . . . 201 12 . . . 200 . 242 Core Remaining (%) 49 | 100 . 68 . . 9 . 74 . . 59 . . . . 70 . . . . . . 34 . . . . 24 . . 11 . Volleys Fired 1148 | 1 51 21 53 67 62 23 29 27 16 24 21 6 16 4 34 48 59 45 47 23 5 9 83 38 12 4 33 18 95 36 138 Largest 2 | 2 2 2 2 2 2 2 2 2 2 2 2 1 2 1 2 1 2 2 2 2 1 2 2 2 1 1 2 2 2 2 2 Hottest 188 | 80 80 90 90 91 91 48 48 60 63 123 60 55 60 63 87 100 63 100 144 162 75 162 162 162 81 81 116 70 188 150 169 Shots Fired 1658 | 2 93 42 90 119 110 45 50 39 24 31 37 6 30 4 33 48 78 62 60 26 5 11 103 63 12 4 39 31 147 40 174 Gun 935 | 2 93 42 85 99 97 44 42 20 8 . . 6 . . . 6 41 20 16 . . 2 17 17 . . 6 26 53 22 171 Cannon 428 | . . . . 6 1 . . 4 12 15 32 . 28 4 15 16 22 17 26 15 5 4 40 35 5 4 30 . 86 3 3 Launcher 181 | . . . 5 14 12 1 8 9 4 16 1 . 2 . 17 7 9 6 7 6 . . 27 . 7 . . 4 4 15 . Special 114 | . . . . . . . . 6 . . 4 . . . 1 19 6 19 11 5 . 5 19 11 . . 3 1 4 . . Kinetic 709 | . 41 . 2 68 97 44 42 20 8 . . . . . 10 6 41 32 16 . . 2 34 23 2 . 6 26 80 19 90 Thermal 179 | . . . . 6 1 . . 4 10 15 32 . 28 . 1 25 3 2 11 . . . 2 . . . . . 32 . 7 Explosive 81 | . . . 3 8 3 . 8 . . 11 1 . 2 . 13 . 6 6 7 6 . . . . . . . 4 . 3 . Electromagnetic 603 | 2 52 42 85 37 9 1 . 9 6 5 . 6 . 4 8 11 22 5 26 15 5 4 50 29 10 4 30 . 31 18 77 Robot Hit Streak 28 | 2 9 9 8 21 28 15 24 19 11 4 11 7 10 8 9 10 11 11 7 11 7 11 7 11 5 2 8 15 11 14 28 Robot Miss Streak 5 | . 4 3 4 3 1 3 1 2 2 4 2 1 1 . 1 2 2 2 4 2 . 1 5 4 1 1 2 1 2 2 5 Penetration Max 2 | . . . . . . . . . . . . . . . . . 1 . 1 . . . . 1 . . . . 1 . 2 Secondary Targets 11 | . 1 1 1 . 1 . . 1 . . . . . . . . 3 . . . . . 1 . . . . . . . 2 Max Gunslinging Chain 1 | . 1 1 1 . 1 . . 1 . . . . . . . . 1 . . . . . 1 . . . . . . . 1 Capacitor 48 | . . . . . . . . . . . . . . . . . . . . . . . . . . . . . . . 48 Shots Hit Robots 1234 | 2 63 26 52 90 88 33 41 37 19 11 25 7 22 5 30 41 55 48 30 14 5 10 66 45 6 3 28 25 116 35 156 Core Hits 788 | 2 30 10 28 56 42 12 29 26 11 22 24 3 12 5 41 16 49 25 19 21 1 2 54 12 10 1 21 21 58 33 92 Critical Hits 159 | . 1 . . 2 1 . . . . . . . 1 . 4 1 1 5 1 . . . 12 6 1 . 1 5 34 12 71 Critical Kills 56 | . 1 . . 2 . . . . . . . . . . 3 1 . 2 . . . . 5 3 . . 1 2 9 6 21 Critical Parts Destroyed 93 | . . . . . 1 . . . . . . . 1 . 1 . . 3 1 . . . 6 2 1 . . 2 25 6 44 Melee Attacks 312 | . 6 . 1 8 1 . 1 59 5 12 6 4 . 1 11 38 . 10 . 7 . 9 18 . . . 2 . 47 10 56 Impact 122 | . . . 1 8 1 . 1 55 1 12 6 2 . 1 10 24 . . . . . . . . . . . . . . . Slashing 110 | . 6 . . . . . . . . . . . . . . . . . . . . . . . . . 2 . 47 . 55 Piercing 55 | . . . . . . . . . . . . . . . . 14 . 6 . 7 . 9 18 . . . . . . . 1 Sneak Attacks 37 | . 2 . . . . . . 3 4 . 1 2 . 1 1 2 . 6 . . . . 2 . . . 1 . 1 10 1 Combat Hostiles 3 | . . . . . . . . . . . . . . . . 2 . . . . . . . . . . . . 1 . . Follow-up Attacks 1 | . . . . . . . . . . . . . . . . . . . . . . . . . . . . . . . 1 Damage Inflicted 46030 | 26 1123 429 1131 2227 1246 581 1179 1239 575 1290 1976 73 1034 512 2490 1383 2920 2251 1641 1228 98 194 3805 1210 569 96 1646 1310 4692 1940 3916 Guns 11467 | 26 796 429 683 967 685 554 467 266 52 . . 73 . . . . 717 368 129 . . 41 349 282 . . 94 571 973 258 2687 Cannons 9069 | . . . . 112 23 . . 102 258 351 676 . 630 66 228 581 539 167 424 264 98 114 746 928 102 96 793 . 1627 12 132 Explosions 21288 | . 91 . 448 1138 538 27 707 527 265 939 1240 . 404 380 2042 239 1664 1405 955 964 . 39 2523 . 467 . 576 739 1301 1670 . Melee 3753 | . 236 . . . . . . 344 . . 60 . . 66 220 415 . 311 . . . . 174 . . . 114 . 716 . 1097 Ramming 159 | . . . . 10 . . 5 . . . . . . . . . . . . . . . . . . . 69 . 75 . . Kinetic 8629 | . 266 . . 672 685 554 467 266 52 . . . . . 161 . 717 450 129 . . 41 555 310 42 . 94 571 1290 186 1121 Thermal 5033 | . 91 . 53 223 23 . . 158 218 351 676 . 630 . . 606 143 . 133 86 . . 838 . . . . . 728 . 76 Explosive 11678 | . . . 284 715 384 . 707 . . 778 150 . 221 . 1281 . 1191 1405 955 878 . . . . . . . 739 835 1155 . Electromagnetic 16778 | 26 530 429 794 607 154 27 . 471 305 161 1090 73 183 446 828 362 869 85 424 264 98 153 2238 900 527 96 1369 . 1048 599 1622 Impact 887 | . . . . . . . . 344 . . 60 . . 66 220 197 . . . . . . . . . . . . . . . Slashing 2122 | . 236 . . . . . . . . . . . . . . . . . . . . . . . . . 114 . 716 . 1056 Piercing 744 | . . . . . . . . . . . . . . . . 218 . 311 . . . . 174 . . . . . . . 41 Highest Corruption 21 | . 1 1 1 1 1 . . 2 2 2 2 . . . 1 2 2 2 2 . . . 2 5 1 . 21 . 6 10 15 Average Corruption 2 | . 1 1 1 1 1 . . 1 2 2 1 . . . 1 1 1 1 1 . . . 1 1 1 . 12 . 2 9 6 Corruption Purged 22 | . . . . . . . . . . . 2 . . . . 3 2 . 2 . . . 2 5 1 . . . 5 . . Effects 182 | . . 3 5 7 7 . . 5 13 13 6 . . . 6 4 6 2 3 . . . 6 11 2 . 3 . 21 26 33 Message Errors 48 | . . 2 . 4 . . . 1 6 3 5 . . . 2 1 1 1 2 . . . 1 3 . . 1 . 4 5 6 Matter Fused 17 | . . . . . . . . . . . . . . . . . . . . . . . . 2 . . 1 . 3 6 5 Heat Flow Errors 12 | . . . . . . . . 1 2 2 . . . . . 1 1 . 1 . . . 1 1 . . . . 1 . 1 Energy Discharges 25 | . . 1 3 . 2 . . 1 2 1 . . . . 1 . 1 . . . . . 1 1 1 . . . 3 4 3 Data Loss (minor) 34 | . . . 1 2 3 . . 2 1 4 1 . . . 1 2 . . . . . . 2 3 1 . 1 . 4 1 5 Data Loss (major) 4 | . . . . . . . . . . . . . . . . . . . . . . . . . . . . . 1 2 1 Misfires 2 | . . . . . . . . . . . . . . . . . . . . . . . . 1 . . . . . 1 . Misdirections 1 | . . . . . . . . . . . . . . . . . . . . . . . . . . . . . . 1 . Targeting Errors 30 | . . . 1 . 2 . . . 1 3 . . . . . . 3 1 . . . . 1 . . . . . 3 6 9 Weapon Failures 9 | . . . . 1 . . . . 1 . . . . . 2 . . . . . . . . . . . . . 2 . 3 Overload Shots 2 | . . . . . . . . . . 2 . . . . . . . . . . . . . . . . . . . . . Overflow Damage 1349 | . . . . 58 . . 12 112 8 68 142 . 27 56 12 143 55 23 69 6 2 12 199 36 . . 40 28 154 54 33 Projectiles 223 | . . . . . . . . . 8 42 13 . 21 . . . . 19 11 6 2 12 33 36 . . 5 . 15 . . Explosions 715 | . . . . 58 . . 12 . . 26 129 . 6 . . . 55 4 58 . . . 166 . . . 35 28 84 54 . Melee 411 | . . . . . . . . 112 . . . . . 56 12 143 . . . . . . . . . . . . 55 . 33 Knockbacks 18 | . . . . . . . . 2 . . . . . 1 . 2 . 1 . . . . 5 . . . 1 . 6 . . Impact 7 | . . . . . . . . 2 . . . . . 1 . 2 . . . . . . . . . . 1 . 1 . . Kinetic 10 | . . . . . . . . . . . . . . . . . . 1 . . . . 4 . . . . . 5 . . Secondary 1 | . . . . . . . . . . . . . . . . . . . . . . . 1 . . . . . . . . Self-Inflicted Damage 1731 | . 10 . 71 119 68 . 78 52 18 7 . . 33 . 75 56 119 71 93 34 . . 277 . . . 98 . 127 325 . Shots 74 | . 1 . 4 6 4 . 4 4 2 1 . . 2 . 4 3 5 1 2 1 . . 12 . . . 1 . 5 12 . Rammed 17 | . . . . 3 . . 1 . . . . . . . . . . . . . . . . . . . 6 . 7 . . Targets Rammed 17 | . . . . 3 . . 1 . . . . . . . . . . . . . . . . . . . 6 . 7 . . Kicked . | . . . . . . . . . . . . . . . . . . . . . . . . . . . . . . . . Crushed . | . . . . . . . . . . . . . . . . . . . . . . . . . . . . . . . . Highest Temperature 360 | 18 97 207 288 162 15 5 5 270 111 262 6 . . 16 93 360 132 116 312 278 180 204 300 342 . 24 11 . 112 33 320 Average Temperature 71 | 12 21 89 88 34 10 3 3 70 27 75 6 . . 11 34 101 46 37 92 102 88 69 50 134 . 14 5 . 36 11 104 Received Heat Transfer 4974 | . 111 132 180 435 76 90 251 156 138 90 99 . 132 8 150 294 237 108 12 . . 69 255 75 18 33 228 54 649 135 759 Effects 9 | . . . . . . . . . . . . . . . . 1 . . 4 1 . . . . . . . . . . 3 Shutdowns 1 | . . . . . . . . . . . . . . . . 1 . . . . . . . . . . . . . . . Energy Bleed 2 | . . . . . . . . . . . . . . . . . . . 1 1 . . . . . . . . . . . Interference 6 | . . . . . . . . . . . . . . . . . . . 3 . . . . . . . . . . . 3 Siege Activations . | . . . . . . . . . . . . . . . . . . . . . . . . . . . . . . . . Robots Corrupted 62 | . . 1 . . . . . . 2 1 . . 1 4 3 2 4 1 1 . 1 1 9 4 4 1 4 . 5 3 10 Combat Hostiles 58 | . . 1 . . . . . . 1 1 . . 1 4 3 2 2 1 1 . 1 1 9 4 4 1 4 . 4 3 10 Parts Fried 114 | . 3 2 5 . 3 . . 4 2 3 5 . . 3 3 3 3 2 2 2 . 1 16 8 4 . 6 . 9 6 19 Impact Corruptions 11 | . . . . . . . . 7 . . . . . 1 2 1 . . . . . . . . . . . . . . . Robots Melted 2 | . . . . . . . . . . . . . . . . 2 . . . . . . . . . . . . . . . Combat Hostiles 2 | . . . . . . . . . . . . . . . . 2 . . . . . . . . . . . . . . . Parts Melted 16 | . . . . 1 . . . . . . 2 . . . . 8 . . 4 . . . . . . . 1 . . . . Heat Transferred 6909 | . 100 . 100 285 37 . . 111 296 433 888 . 851 . . 1203 161 . 800 50 . . 780 . . . . . 703 . 111 Parts Sabotaged 4 | . . . . . . . . . . . . . . . 4 . . . . . . . . . . . . . . . . Parts Stolen . | . . . . . . . . . . . . . . . . . . . . . . . . . . . . . . . . Parts Stripped . | . . . . . . . . . . . . . . . . . . . . . . . . . . . . . . . . Power Chain Reactions 16 | . 3 . 1 2 . . . 2 . . . . . . . . 1 . . 1 . . 6 . . . . . . . . Missiles Intercepted . | . . . . . . . . . . . . . . . . . . . . . . . . . . . . . . . . Alert | -11 -10 -10 -9 -9 -9 -8 -8 -7 -7 -7 -6 -6 -6 -6 -5 -5 -5 -5 -5 -5 -5 -4 -4 -4 -4 -4 -4 -3 -3 -3 -2 ------- Run | Scr Mat Min Mat Sto Gar Mat Gar Fac Low Low Fac Low Low Dat Pro Fac Gar Fac Upp Upp Zhi Pro Fac Ext Cet Arc Hub Res Tes Gar Res Peak Influence 876 | 5 408 284 179 715 664 525 610 427 . . 305 . . . . 201 688 876 . . . . 705 349 489 324 648 326 294 603 552 Average Influence 272 | 1 241 118 64 391 524 420 462 146 . . 152 . . . . 69 585 534 . . . . 249 170 320 267 263 202 140 456 354 Maximum Alert Level 3 | . 2 1 . 3 2 2 2 2 . . 1 . . . . 1 2 3 . . . . 3 1 2 1 2 1 1 2 2 Low Security (%) 45 | 100 23 81 100 26 . . . 76 . . 66 . . . . 98 5 5 . . . . 34 71 23 25 36 33 73 24 3 Level 1 30 | . 75 18 . 22 27 34 22 21 . . 33 . . . . 1 2 39 . . . . 54 28 40 74 46 66 26 1 70 Level 2 21 | . . . . 47 72 65 77 1 . . . . . . . . 91 12 . . . . 8 . 36 . 16 . . 74 26 Level 3 2 | . . . . 3 . . . . . . . . . . . . . 42 . . . . 2 . . . . . . . . Level 4 . | . . . . . . . . . . . . . . . . . . . . . . . . . . . . . . . . Level 5 . | . . . . . . . . . . . . . . . . . . . . . . . . . . . . . . . . High Security . | . . . . . . . . . . . . . . . . . . . . . . . . . . . . . . . . Max Security . | . . . . . . . . . . . . . . . . . . . . . . . . . . . . . . . . Squads Dispatched 68 | . 4 . 4 6 . 1 . 3 . . 5 . . . 1 6 . 5 . . . . 9 2 . . 5 1 11 . 5 Investigation 13 | . 2 . 2 2 . . . 1 . . . . . . . 1 . . . . . . 1 1 . . . . 1 . 2 Extermination 15 | . . . . . . . . 2 . . 2 . . . . 1 . 1 . . . . 1 . . . 1 . 4 . 3 Reinforcement 28 | . 2 . 2 4 . . . . . . 3 . . . . 3 . 3 . . . . 2 1 . . 3 1 4 . . Assault 4 | . . . . . . . . . . . . . . . 1 . . 1 . . . . 1 . . . 1 . . . . Garrison 8 | . . . . . . 1 . . . . . . . . . 1 . . . . . . 4 . . . . . 2 . . Intercept . | . . . . . . . . . . . . . . . . . . . . . . . . . . . . . . . . Construction Impeded 6 | . . . . 2 . . . . . . 1 . . . . . . 2 . . . . 1 . . . . . . . . Haulers Reinforced 2 | . . . . . . . . . . . . . . . . 1 . . . . . . . . . . . . 1 . . Alert ID Control Effect 17 | . . . . . . . . . . . . . . . . . 5 5 . 2 . 1 4 . . . . . . . . Stealth | -11 -10 -10 -9 -9 -9 -8 -8 -7 -7 -7 -6 -6 -6 -6 -5 -5 -5 -5 -5 -5 -5 -4 -4 -4 -4 -4 -4 -3 -3 -3 -2 --------- Run | Scr Mat Min Mat Sto Gar Mat Gar Fac Low Low Fac Low Low Dat Pro Fac Gar Fac Upp Upp Zhi Pro Fac Ext Cet Arc Hub Res Tes Gar Res Distress Signals 27 | . 1 . 2 1 . . . 1 . . 2 . . . . . . . . . . . 2 2 2 . 3 8 1 . 2 Communications Jammed 113 | . . . . . . . . . . . . . . . . . . . . . . . 7 . . . . . 25 . 81 Distress Signals 112 | . . . . . . . . . . . . . . . . . . . . . . . 7 . . . . . 24 . 81 Times Spotted 683 | . 24 11 30 36 16 9 15 29 7 14 24 . 7 1 26 15 37 24 8 15 . 14 62 37 18 3 55 16 56 22 52 Peak Tracking Total 21 | . 4 2 4 11 4 5 6 4 4 4 4 . 4 3 6 3 11 4 2 10 . 4 7 6 5 2 21 7 9 7 10 Tactical Retreats 52 | . . 1 2 . 4 . 2 3 1 2 . . . . 4 . 1 1 4 2 . 5 6 . . . 3 1 5 2 3 Traps | -11 -10 -10 -9 -9 -9 -8 -8 -7 -7 -7 -6 -6 -6 -6 -5 -5 -5 -5 -5 -5 -5 -4 -4 -4 -4 -4 -4 -3 -3 -3 -2 ------- Run | Scr Mat Min Mat Sto Gar Mat Gar Fac Low Low Fac Low Low Dat Pro Fac Gar Fac Upp Upp Zhi Pro Fac Ext Cet Arc Hub Res Tes Gar Res Traps Triggered 46 | . 3 1 . 3 6 . 8 . . . 3 . . 1 . . 2 . 1 . . . 1 8 . . . 1 1 4 3 Indirectly 3 | . . . . . . . . . . . 1 . . 1 . . . . . . . . 1 . . . . . . . . Trap Hack Attempts 316 | . . . . . . . . 39 . . 30 . . . . 65 . 84 . . . . . 44 . . . 49 . 5 . Triggered . | . . . . . . . . . . . . . . . . . . . . . . . . . . . . . . . . Disarmed 10 | . . . 6 . . . . . . . . . . . . . . 1 . . . . . 1 . . . 2 . . . Reprogrammed 36 | . . . . 3 . . . 6 . . 2 . . . . 3 . 7 . . . . . 4 . . 6 3 1 1 . Reused 40 | . . . . 2 1 . . 6 1 2 5 . 1 2 4 1 . 2 4 . . 4 . 1 . . 1 . 3 . . Traps Extracted 23 | . . . . . . . . 4 1 2 3 . . . . 1 . 2 . . . . . 1 . . 5 3 . 1 . Installed 49 | . . . . . 1 . . 4 2 4 7 . 1 10 4 . . 3 5 . . 4 . 1 . . . . 2 . 1 Triggered 44 | . 1 . . 2 1 . . 6 1 6 5 . 1 . 4 1 . 2 4 . . 4 . 1 . . 2 . 3 . . Machines | -11 -10 -10 -9 -9 -9 -8 -8 -7 -7 -7 -6 -6 -6 -6 -5 -5 -5 -5 -5 -5 -5 -4 -4 -4 -4 -4 -4 -3 -3 -3 -2 ---------- Run | Scr Mat Min Mat Sto Gar Mat Gar Fac Low Low Fac Low Low Dat Pro Fac Gar Fac Upp Upp Zhi Pro Fac Ext Cet Arc Hub Res Tes Gar Res Machines Disabled 63 | . 1 1 2 4 1 1 1 4 1 1 2 . . 1 . . 3 8 . 1 . . 10 2 . 2 7 1 7 2 . Max in Single Turn 9 | . 1 1 1 1 1 1 1 2 1 1 2 . . 1 . . 1 1 . 1 . . 9 . . . 5 1 1 2 . Garrison Access 6 | . . . . . . . . 1 . . . . . . . . . 1 . . . . 1 . . . 1 . . . 2 Garrison Relay 5 | . . . . . 1 . 1 . . . . . . . . . 3 . . . . . . . . . . . . . . Network Hub 1 | . . . . . . . . . . . . . . . . . . . . . . . . . . . 1 . . . . Machines Sabotaged . | . . . . . . . . . . . . . . . . . . . . . . . . . . . . . . . . Garrisons Compromised . | . . . . . . . . . . . . . . . . . . . . . . . . . . . . . . . . Overloaded Fab Kills . | . . . . . . . . . . . . . . . . . . . . . . . . . . . . . . . . Fab Network Shutdowns 1 | . . . . . . . . . . . . . . . . . . 1 . . . . . . . . . . . . . Hacking | -11 -10 -10 -9 -9 -9 -8 -8 -7 -7 -7 -6 -6 -6 -6 -5 -5 -5 -5 -5 -5 -5 -4 -4 -4 -4 -4 -4 -3 -3 -3 -2 --------- Run | Scr Mat Min Mat Sto Gar Mat Gar Fac Low Low Fac Low Low Dat Pro Fac Gar Fac Upp Upp Zhi Pro Fac Ext Cet Arc Hub Res Tes Gar Res Machines Accessed 129 | . 6 1 10 11 . 5 . 9 . . 10 1 . 4 . 9 . 7 1 . 4 . 8 12 3 . 6 3 11 . 8 Terminals 73 | . 5 . 7 9 . 3 . 5 . . 6 . . . . 5 . 2 . . . . 4 11 3 . 5 1 6 . 1 Fabricators 11 | . . . . . . . . 1 . . 1 . . . . 1 . 2 . . . . 2 . . . . . 1 . 3 Repair Stations 8 | . . . 1 1 . . . 1 . . 1 . . . . 1 . . . . . . 1 . . . . . 2 . . Recycling Units 10 | . 1 . 1 . . 1 . 1 . . 1 . . . . 1 . 1 . . . . . 1 . . . . . . 2 Scanalyzers 5 | . . . 1 . . . . . . . . . . . . . . 1 . . . . . . . . . 2 1 . . Garrison Access 11 | . . . . 1 . 1 . 1 . . 1 . . . . 1 . 1 . . . . 1 . . . 1 . 1 . 2 Total Hacks 464 | . 15 1 34 30 . 13 . 27 . . 35 1 . 29 . 22 . 32 1 . 17 . 28 41 16 . 18 23 55 . 26 Successful 257 | . 8 1 20 19 . 9 . 15 . . 19 1 . 29 . 15 . 16 1 . 17 . 18 13 6 . 4 5 29 . 12 Failed 206 | . 7 . 13 11 . 4 . 12 . . 16 . . . . 7 . 16 . . . . 10 28 10 . 14 18 26 . 14 Catastrophic 36 | . 1 . 2 3 . 1 . 1 . . 1 . . . . 2 . 2 . . . . 1 7 2 . 3 3 4 . 3 Database Lockouts 1 | . . . 1 . . . . . . . . . . . . . . . . . . . . . . . . . . . . Manual 200 | . 12 . 22 17 . 4 . 15 . . 20 . . . . 13 . 6 . . . . 15 24 15 . 12 3 12 . 10 Terminals 240 | . 12 . 26 25 . 8 . 15 . . 20 . . . . 12 . 7 . . . . 14 38 16 . 15 8 22 . 2 Fabricators 52 | . . . . . . . . 4 . . 7 . . . . 2 . 8 . . . . 11 . . . . . 8 . 12 Repair Stations 34 | . . . 2 2 . . . 2 . . 2 . . . . 5 . . . . . . 2 . . . . . 19 . . Recycling Units 25 | . 3 . 2 . . 3 . 4 . . 2 . . . . 1 . 3 . . . . . 3 . . . . . . 4 Scanalyzers 30 | . . . 4 . . . . . . . . . . . . . . 10 . . . . . . . . . 15 1 . . Garrison Access 34 | . . . . 3 . 2 . 2 . . 4 . . . . 2 . 4 . . . . 1 . . . 3 . 5 . 8 Terminal Hacks 116 | . 4 1 11 11 . 4 . 4 . . 6 1 . 29 . 3 . 1 1 . 17 . 2 10 2 . 3 1 5 . . Record 16 | . . . . . . . . . . . . . . 11 . . . . . . 5 . . . . . . . . . . Part Schematic 19 | . 1 . . . . 1 . 1 . . . . . 10 . 2 . . . . 4 . . . . . . . . . . Robot Schematic 8 | . . . 1 . . 1 . . . . 1 . . 5 . . . . . . . . . . . . . . . . . Robot Analysis 8 | . 2 . 1 . . . . . . . . . . . . . . . . . 4 . 1 . . . . . . . . Prototype ID Bank 11 | . . . . . . 1 . . . . 1 . . 3 . 1 . . . . 4 . . . . . 1 . . . . Open Door 14 | . . 1 . 3 . . . . . . . 1 . . . . . . 1 . . . 1 6 1 . . . . . . Branch Access Points 4 | . . . 1 . . . . . . . 1 . . . . . . 1 . . . . . . . . . 1 . . . Machine Index 1 | . . . . . . . . . . . . . . . . . . . . . . . . . . . . . 1 . . Terminal Index 1 | . . . . 1 . . . . . . . . . . . . . . . . . . . . . . . . . . . Fabricator Index 2 | . . . . . . . . 1 . . 1 . . . . . . . . . . . . . . . . . . . . Unreport Threat 15 | . . . 4 3 . . . 2 . . . . . . . . . . . . . . . 3 1 . . . 2 . . Locate Traps 5 | . . . 2 2 . 1 . . . . . . . . . . . . . . . . . . . . . . . . . Disarm Traps 1 | . . . 1 . . . . . . . . . . . . . . . . . . . . . . . . . . . . Reprogram Traps 3 | . . . . 1 . . . . . . . . . . . . . . . . . . . . . . 1 . 1 . . Recall Investigation 2 | . . . . . . . . . . . . . . . . . . . . . . . . 1 . . . . 1 . . Recall Extermination 1 | . . . . . . . . . . . . . . . . . . . . . . . . . . . 1 . . . . Recall Reinforcements 1 | . . . . . . . . . . . 1 . . . . . . . . . . . . . . . . . . . . Zone Layout 4 | . 1 . 1 1 . . . . . . 1 . . . . . . . . . . . . . . . . . . . . Fabricator Hacks 27 | . . . . . . . . 2 . . 5 . . . . . . 4 . . . . 6 . . . . . 4 . 6 Load Schematic 13 | . . . . . . . . 1 . . 2 . . . . . . 2 . . . . 3 . . . . . 2 . 3 Build 14 | . . . . . . . . 1 . . 3 . . . . . . 2 . . . . 3 . . . . . 2 . 3 Repair Station Hacks 26 | . . . 2 2 . . . 2 . . 1 . . . . 5 . . . . . . 2 . . . . . 12 . . Scan Component 15 | . . . 1 1 . . . 1 . . 1 . . . . 3 . . . . . . 1 . . . . . 7 . . Repair 11 | . . . 1 1 . . . 1 . . . . . . . 2 . . . . . . 1 . . . . . 5 . . Recycling Unit Hacks 10 | . 1 . 1 . . 3 . . . . 1 . . . . 1 . 1 . . . . . . . . . . . . 2 Process 1 | . . . . . . 1 . . . . . . . . . . . . . . . . . . . . . . . . . Report Inventory 1 | . . . . . . 1 . . . . . . . . . . . . . . . . . . . . . . . . . Retrieve Matter 1 | . . . . . . 1 . . . . . . . . . . . . . . . . . . . . . . . . . Retrieve Components 7 | . 1 . 1 . . . . . . . 1 . . . . 1 . 1 . . . . . . . . . . . . 2 Scanalyzer 15 | . . . 4 . . . . . . . . . . . . . . 7 . . . . . . . . . 4 . . . Insert Component 8 | . . . 2 . . . . . . . . . . . . . . 3 . . . . . . . . . 3 . . . Analyze 7 | . . . 2 . . . . . . . . . . . . . . 4 . . . . . . . . . 1 . . . Garrison Access Hacks 12 | . . . . 1 . 1 . 1 . . . . . . . 1 . 2 . . . . . . . . 1 . 1 . 4 Unlock Access 6 | . . . . 1 . 1 . . . . . . . . . 1 . 1 . . . . . . . . 1 . 1 . . Seal Access 4 | . . . . . . . . 1 . . . . . . . . . 1 . . . . . . . . . . . . 2 Coupler Status 2 | . . . . . . . . . . . . . . . . . . . . . . . . . . . . . . . 2 Unauthorized Hacks 51 | . 3 . 2 5 . 1 . 6 . . 6 . . . . 5 . 1 . . . . 8 3 4 . . . 7 . . Terminals 36 | . 2 . 1 4 . . . 5 . . 3 . . . . 4 . 1 . . . . 6 3 4 . . . 3 . . Track 5 | . . . . 1 . . . . . . 1 . . . . 1 . . . . . . 1 . 1 . . . . . . Assimilate 6 | . . . . . . . . 2 . . . . . . . 1 . . . . . . 2 . . . . . 1 . . Botnet 20 | . 2 . 1 2 . . . 2 . . 2 . . . . 2 . 1 . . . . 2 2 2 . . . 2 . . Disrupt 3 | . . . . . . . . . . . . . . . . . . . . . . . 1 1 1 . . . . . . Operators 2 | . . . . 1 . . . 1 . . . . . . . . . . . . . . . . . . . . . . . Fabricators 4 | . . . . . . . . . . . 1 . . . . . . . . . . . 1 . . . . . 2 . . Prioritize 1 | . . . . . . . . . . . . . . . . . . . . . . . . . . . . . 1 . . Siphon 3 | . . . . . . . . . . . 1 . . . . . . . . . . . 1 . . . . . 1 . . Repair Stations . | . . . . . . . . . . . . . . . . . . . . . . . . . . . . . . . . Recycling Units 2 | . 1 . 1 . . . . . . . . . . . . . . . . . . . . . . . . . . . . Tunnel 2 | . 1 . 1 . . . . . . . . . . . . . . . . . . . . . . . . . . . . Scanalyzers 1 | . . . . . . . . . . . . . . . . . . . . . . . . . . . . . 1 . . Researchers 1 | . . . . . . . . . . . . . . . . . . . . . . . . . . . . . 1 . . Garrison Access 8 | . . . . 1 . 1 . 1 . . 2 . . . . 1 . . . . . . 1 . . . . . 1 . . Restock 2 | . . . . . . . . 1 . . 1 . . . . . . . . . . . . . . . . . . . . Reprogram 5 | . . . . 1 . 1 . . . . 1 . . . . 1 . . . . . . . . . . . . 1 . . Eject 1 | . . . . . . . . . . . . . . . . . . . . . . . 1 . . . . . . . . Data Cores Recovered 2 | . . . 1 . . . . . . . . . . . . . . . . . . . . . . . 1 . . . . Used 1 | . . . 1 . . . . . . . . . . . . . . . . . . . . . . . . . . . . Hacking Detections 96 | . 5 . 8 8 . 5 . 8 . . 9 . . . . 6 . 6 . . . . 6 11 3 . 5 3 7 . 6 Full Trace Events 9 | . 2 . . 2 . . . 1 . . . . . . . 1 . . . . . . . 1 . . . . . . 2 Feedback Events . | . . . . . . . . . . . . . . . . . . . . . . . . . . . . . . . . Feedback Blocked . | . . . . . . . . . . . . . . . . . . . . . . . . . . . . . . . . Robot Schematics Acquired 8 | . . . 1 . . 1 . . . . 1 . . 5 . . . . . . . . . . . . . . . . . Robots Built . | . . . . . . . . . . . . . . . . . . . . . . . . . . . . . . . . Matter . | . . . . . . . . . . . . . . . . . . . . . . . . . . . . . . . . Time . | . . . . . . . . . . . . . . . . . . . . . . . . . . . . . . . . Total Robot Build Rating . | . . . . . . . . . . . . . . . . . . . . . . . . . . . . . . . . Part Schematics Acquired 25 | . 1 . 2 . . 1 . 1 . . . . . 10 . 2 . 3 . . 4 . . . . . . 1 . . . Parts Built 16 | . . . . . . . . 1 . . 3 . . . . . . 1 . . . . 4 . . . . . 4 . 3 Matter 2125 | . . . . . . . . 102 . . 320 . . . . . . 285 . . . . 529 . . . . . 301 . 588 Time 653 | . . . . . . . . 25 . . 186 . . . . . . 76 . . . . 185 . . . . . 79 . 102 Total Part Build Rating 58 | . . . . . . . . 1 . . 6 . . . . . . 5 . . . . 14 . . . . . 22 . 10 Parts Repaired 11 | . . . 1 1 . . . 1 . . . . . . . 2 . . . . . . 1 . . . . . 5 . . Time 330 | . . . 26 32 . . . 10 . . . . . . . 88 . . . . . . 28 . . . . . 146 . . Parts Recycled . | . . . . . . . . . . . . . . . . . . . . . . . . . . . . . . . . Recycled Matter 173 | . . . . . . 173 . . . . . . . . . . . . . . . . . . . . . . . . . Retrieved Matter 173 | . . . . . . 173 . . . . . . . . . . . . . . . . . . . . . . . . . Retrieved Components 25 | . 8 . 9 . . . . . . . 1 . . . . 1 . 1 . . . . . . . . . . . . 5 Parts Scanalyzed 7 | . . . 2 . . . . . . . . . . . . . . 3 . . . . . . . . . 2 . . . Part Schematics Acquired 6 | . . . 2 . . . . . . . . . . . . . . 3 . . . . . . . . . 1 . . . Parts Damaged . | . . . . . . . . . . . . . . . . . . . . . . . . . . . . . . . . Bothacking | -11 -10 -10 -9 -9 -9 -8 -8 -7 -7 -7 -6 -6 -6 -6 -5 -5 -5 -5 -5 -5 -5 -4 -4 -4 -4 -4 -4 -3 -3 -3 -2 ------------ Run | Scr Mat Min Mat Sto Gar Mat Gar Fac Low Low Fac Low Low Dat Pro Fac Gar Fac Upp Upp Zhi Pro Fac Ext Cet Arc Hub Res Tes Gar Res Used RIF Installer 4 | . . . . . 1 . 1 . . . . . . . . . 1 . . . . . . . . . . . . 1 . Patrol Navigation 1 | . . . . . . . . . . . . . . . . . . . . . . . . . . . . . . 1 . Alert ID Control 1 | . . . . . . . . . . . . . . . . . 1 . . . . . . . . . . . . . . Structural Interface 1 | . . . . . . . 1 . . . . . . . . . . . . . . . . . . . . . . . . Robots Hacked 52 | . . . . . . . . 5 2 . 2 2 . . 1 4 3 10 . 2 . 4 10 2 . . 1 1 3 . . Non-combat 20 | . . . . . . . . 4 2 . 1 2 . . . 1 . 3 . 1 . . 4 1 . . 1 . . . . Combat 32 | . . . . . . . . 1 . . 1 . . . 1 3 3 7 . 1 . 4 6 1 . . . 1 3 . . Robot Hacks Applied 65 | . . . . . . . . 6 3 . 3 2 . . 2 4 4 13 . 2 . 4 13 2 . . 3 1 3 . . parse_system 4 | . . . . . . . . . 2 . . 1 . . . . . . . . . . . 1 . . . . . . . no_distress 1 | . . . . . . . . . . . . . . . . . . 1 . . . . . . . . . . . . . drop_inventory 2 | . . . . . . . . 1 . . . . . . . . . 1 . . . . . . . . . . . . . ignore_parts 1 | . . . . . . . . . . . . . . . . . . 1 . . . . . . . . . . . . . purge_threat 5 | . . . . . . . . . . . . . . . . . . . . . . . 3 . . . 2 . . . . block_reporting 1 | . . . . . . . . . . . 1 . . . . . . . . . . . . . . . . . . . . link_fov 1 | . . . . . . . . 1 . . . . . . . . . . . . . . . . . . . . . . . scatter_targeting 1 | . . . . . . . . . . . . . . . . . . . . . . . 1 . . . . . . . . spike_heat 1 | . . . . . . . . . . . . . . . . . . . . . . . 1 . . . . . . . . amplify_resonance 5 | . . . . . . . . . . . . . . . . . 1 . . . . 1 1 . . . . . 2 . . wipe_record 1 | . . . . . . . . . . . . . . . . . . . . . . . 1 . . . . . . . . reboot_system 4 | . . . . . . . . . . . . . . . . 2 . . . . . 1 1 . . . . . . . . overwrite_iff 9 | . . . . . . . . . . . . . . . 1 . 1 2 . 1 . 1 1 . . . . 1 1 . . streamctrl_low 2 | . . . . . . . . . . . . . . . . . . . . . . . 2 . . . . . . . . formatsys_low 14 | . . . . . . . . 2 1 . 1 1 . . 1 1 . 3 . 1 . . 1 1 . . 1 . . . . formatsys_high 13 | . . . . . . . . 2 . . 1 . . . . 1 2 5 . . . 1 1 . . . . . . . . Relay Couplers Released 36 | . . . . . 5 . 5 3 . . 1 . . . . . 14 . . . . . 5 . . . 2 . . . 1 Ejected 4 | . . . . . . . . . . . . . . . . . . . . . . . 4 . . . . . . . . Machine Destruction 28 | . . . . . 5 . 5 . . . . . . . . . 14 . . . . . 1 . . . 2 . . . 1 Programmers 4 | . . . . . . . . 3 . . 1 . . . . . . . . . . . . . . . . . . . . Attached 22 | . . . . . . . . 3 . . 2 . . . . 2 3 3 . 2 . 1 4 . . . 1 1 . . . Robots Rewired 41 | . . . . . . . . . . 3 . . . . 1 . . . . 2 . . . 29 . . . . . 6 . Allies Hacked 4 | . . . . . . . . . . . . . . . . 1 . 2 . . . . . . . . . . 1 . . Hacks Repelled 1 | . . . . . . . . . . . . . . . . . . 1 . . . . . . . . . . . . . Allies | -11 -10 -10 -9 -9 -9 -8 -8 -7 -7 -7 -6 -6 -6 -6 -5 -5 -5 -5 -5 -5 -5 -4 -4 -4 -4 -4 -4 -3 -3 -3 -2 -------- Run | Scr Mat Min Mat Sto Gar Mat Gar Fac Low Low Fac Low Low Dat Pro Fac Gar Fac Upp Upp Zhi Pro Fac Ext Cet Arc Hub Res Tes Gar Res Total Allies 104 | . . 3 . 1 . 1 . 5 1 3 4 1 . . 2 4 3 8 . 4 . 2 5 40 5 . 1 1 4 6 . Largest Group 19 | . . 3 . 1 . 1 1 3 3 6 6 3 3 1 2 2 2 4 1 3 3 3 2 19 13 8 6 1 2 6 1 Highest-Rated Group 889 | . . 40 . 8 . 15 15 40 48 108 108 81 81 23 50 39 58 127 19 83 70 70 57 889 695 670 499 30 90 132 30 Highest-Rated Ally 156 | . . 16 . 8 . 15 15 21 20 20 32 32 32 23 30 29 49 47 19 64 29 58 56 156 150 144 94 30 48 30 30 Total Orders 109 | . . . . . . . . 3 12 12 19 13 5 3 2 4 . 6 8 7 2 7 3 2 . . 1 . . . . STAY 30 | . . . . . . . . . 2 2 3 6 3 . . . . 1 3 3 1 3 2 1 . . . . . . . GOTO 21 | . . . . . . . . 1 1 3 10 . . 1 1 2 . . . 1 . . . . . . 1 . . . . FOLLOW 38 | . . . . . . . . 1 5 5 5 7 2 1 1 2 . 2 1 2 1 2 . 1 . . . . . . . AID 12 | . . . . . . . . 1 3 2 . . . . . . . 1 2 1 . 1 1 . . . . . . . . DROP 3 | . . . . . . . . . . . 1 . . 1 . . . . . . . 1 . . . . . . . . . PICKUP 1 | . . . . . . . . . 1 . . . . . . . . . . . . . . . . . . . . . . EXPLORE 2 | . . . . . . . . . . . . . . . . . . . 2 . . . . . . . . . . . . RETURN 2 | . . . . . . . . . . . . . . . . . . 2 . . . . . . . . . . . . . Ally Attacks 641 | . . 27 . . . . 7 5 . 1 34 . 2 . . . 26 22 . 9 . 8 18 235 82 39 73 3 . 50 . Total Damage 16611 | . . 296 . . . . 153 151 . 39 681 . 109 . . . 562 829 . 242 . 215 639 5399 2555 1550 2410 69 . 712 . Kills 100 | . . 2 . . . . 2 1 . . 4 . . . . . 8 6 . 3 . 1 4 38 14 4 8 . . 5 . Allies Corrupted 4 | . . . . . . . . . . . 1 . . . . . . . . . . . . 1 . . . . 2 . . Allies Melted 1 | . . . . . . . . . . . . . 1 . . . . . . . . . . . . . . . . . . Intel | -11 -10 -10 -9 -9 -9 -8 -8 -7 -7 -7 -6 -6 -6 -6 -5 -5 -5 -5 -5 -5 -5 -4 -4 -4 -4 -4 -4 -3 -3 -3 -2 ------- Run | Scr Mat Min Mat Sto Gar Mat Gar Fac Low Low Fac Low Low Dat Pro Fac Gar Fac Upp Upp Zhi Pro Fac Ext Cet Arc Hub Res Tes Gar Res Robot Analysis Total 8 | . 2 . 1 . . . . . . . . . . . . . . . . . 4 . 1 . . . . . . . . Derelict Logs Recovered 12 | . . 2 . . . . . . 1 2 . 3 . . 2 . . . 1 1 . . . . . . . . . . . Drone Launches 6 | . . . . . . . . . . . . . . . . . . 6 . . . . . . . . . . . . . Drone Recoveries 4 | . . . . . . . . . . . . . . . . . . 4 . . . . . . . . . . . . . Exploration | -11 -10 -10 -9 -9 -9 -8 -8 -7 -7 -7 -6 -6 -6 -6 -5 -5 -5 -5 -5 -5 -5 -4 -4 -4 -4 -4 -4 -3 -3 -3 -2 ------------- Run | Scr Mat Min Mat Sto Gar Mat Gar Fac Low Low Fac Low Low Dat Pro Fac Gar Fac Upp Upp Zhi Pro Fac Ext Cet Arc Hub Res Tes Gar Res Turns Passed 34126 | 57 704 996 1027 1262 851 468 706 1655 1699 1450 1722 1072 852 605 842 1508 1427 1294 1984 1095 219 1278 1227 1606 411 130 801 891 1917 685 1685 Spaces Moved 17399 | 42 459 633 570 537 347 276 360 897 1154 961 918 625 488 299 372 613 533 679 1161 716 147 650 503 715 185 63 388 385 840 303 580 Core 2 | 1 . . . . . . . . . . . . . . . . . . . . . . . . . . . . . . 1 Treads 2392 | . . . . 265 347 . 1 . . . . . . . . . 303 . . . . 72 152 15 19 . 134 385 448 34 217 Legs 1075 | . . . . . . . . . . . . . . 132 372 242 . . . . . . . . . . . . . 8 321 Wheels 13930 | 41 459 633 570 272 . 276 359 897 1154 961 918 625 488 167 . 371 230 679 1161 716 147 578 351 700 166 63 254 . 392 261 41 Hover . | . . . . . . . . . . . . . . . . . . . . . . . . . . . . . . . . Flight . | . . . . . . . . . . . . . . . . . . . . . . . . . . . . . . . . Fastest Speed 50 | 50 90 120 120 140 180 140 140 110 120 130 140 150 160 150 150 130 130 120 130 130 130 130 120 120 160 170 170 175 106 116 150 Average Speed 145 | 86 96 120 133 161 180 140 140 122 124 130 146 150 160 172 179 180 174 127 141 130 130 164 144 140 167 170 173 177 142 155 165 Slowest Speed 2350 | 90 120 120 150 220 180 140 185 140 130 130 150 160 160 230 180 300 250 130 150 150 130 230 290 200 200 170 180 180 200 220 2350 Overloaded Moves . | . . . . . . . . . . . . . . . . . . . . . . . . . . . . . . . . Propulsion Burnouts . | . . . . . . . . . . . . . . . . . . . . . . . . . . . . . . . . Robots Hopped 1 | . . . . . . . . . . . . . . . . . . . . . . . . . 1 . . . . . . Cave-ins Triggered 1 | . . . . . . . . 1 . . . . . . . . . . . . . . . . . . . . . . . Teleports 1 | . . . . . . . . . . . . . . . . . . . . . . . 1 . . . . . . . . Exploration Rate (%) 56 | 3 86 94 61 86 49 28 71 15 86 74 22 67 64 78 64 18 66 19 86 71 60 64 14 81 77 77 59 15 90 57 18 Regions Visited 31 Branch Regions 17 Pre-discovered Areas 6 | . 1 . 1 . . . . . . . . . . 1 . . . . . . 3 . . . . . . . . . . Known Exits Taken 21 | . . . 1 1 . 1 . 1 1 1 1 1 . . . 1 . 1 1 1 1 1 1 1 1 1 1 1 1 . . Unknown Exits Taken 6 | 1 1 1 . . . . . . . . . . 1 1 1 . . . . . . . . . . . . . . . . Scrap Searched 22 | . . 2 . . . . . . 5 2 . 4 2 . 1 . . . 3 1 . 2 . . . . . . . . . Spaces Dug 345 | . . . 1 6 . . 8 27 1 22 17 1 11 . 17 15 19 3 60 32 . 7 14 . . . 1 . 25 45 13 Terrain Destroyed 1428 | . 9 . 16 70 11 . 47 30 2 84 48 1 45 22 190 16 30 79 162 92 . 22 67 4 . . 158 29 71 110 13 Melee 125 | . . . 1 6 . . . 24 1 6 5 1 . . . 15 . 3 . 4 . 7 14 . . . 1 . 24 . 13 Projectile 52 | . . . . . . . . . 1 1 1 . 2 . 7 1 . 4 15 . . . 2 4 . . 1 . 13 . . AOE 1251 | . 9 . 15 64 11 . 47 6 . 77 42 . 43 22 183 . 30 72 147 88 . 15 51 . . . 156 29 34 110 . Actions | -11 -10 -10 -9 -9 -9 -8 -8 -7 -7 -7 -6 -6 -6 -6 -5 -5 -5 -5 -5 -5 -5 -4 -4 -4 -4 -4 -4 -3 -3 -3 -2 --------- Run | Scr Mat Min Mat Sto Gar Mat Gar Fac Low Low Fac Low Low Dat Pro Fac Gar Fac Upp Upp Zhi Pro Fac Ext Cet Arc Hub Res Tes Gar Res Total 24031 | 57 614 830 741 791 461 318 511 1293 1380 1107 1244 746 528 387 490 881 951 1029 1434 831 169 827 865 1252 275 83 472 558 1328 464 1114 Wait 2998 | 4 70 157 66 116 3 1 37 199 181 72 188 78 12 44 28 31 296 141 182 62 . 133 201 134 50 13 19 65 185 34 196 Move 17367 | 41 458 632 569 536 346 275 359 896 1153 960 917 624 487 298 371 612 532 678 1160 715 146 649 502 714 182 62 388 384 839 302 580 Hop 1 | . . . . . . . . . . . . . . . . . . . . . . . . . 1 . . . . . . Pick Up 296 | 4 15 8 14 10 10 5 3 12 3 3 27 8 2 8 7 14 17 8 9 2 3 1 10 7 7 . 2 8 40 4 25 Fast Attach 171 | 7 2 . 6 12 . 1 1 . . . 1 4 2 4 6 11 6 6 . . 4 2 12 2 5 1 1 5 31 16 23 Attach 144 | . 3 . 3 5 1 2 . 5 . . 5 1 1 . 5 8 8 4 2 2 1 1 11 3 2 1 4 9 21 10 26 Detach 61 | . 2 . 2 1 . . . 1 . . . . 1 3 2 4 1 5 1 . 2 . 6 . 3 1 . 3 9 3 11 Swap 446 | . 3 4 15 17 15 5 11 37 14 16 25 10 3 3 11 34 16 29 20 12 4 18 16 27 3 . 9 11 23 10 25 Drop 287 | . 4 8 12 16 10 6 5 12 5 4 15 10 3 12 5 15 13 10 8 . 4 1 5 14 10 1 8 6 29 2 34 Fire 1148 | 1 51 21 53 67 62 23 29 27 16 24 21 6 16 4 34 48 59 45 47 23 5 9 83 38 12 4 33 18 95 36 138 Melee 311 | . 6 . 1 8 1 . 1 59 5 12 6 4 . 1 11 38 . 10 . 7 . 9 18 . . . 2 . 47 10 55 Ram 3 | . . . . . . . . . . . . . . . . . . . . . . . . . . . . . 3 . . Kick . | . . . . . . . . . . . . . . . . . . . . . . . . . . . . . . . . Crush 13 | . . . . 3 . . 1 . . . . . . . . . . . . . . . . . . . 5 . 4 . . Escape Stasis 155 | . . . . . 12 . 64 . . . . . . . . . 3 . . . . . . 44 . . . . . 32 . Rewire 264 | . . . . . . . . 2 1 12 2 1 . . 6 1 . 5 . 8 . . 1 224 . . 1 . . . . Trap 365 | . . . . . 1 . . 43 2 4 37 . 1 10 4 65 . 87 5 . . 4 . 45 . . . 49 2 5 1 Miscellaneous 1 | . . . . . . . . . . . . . . . . . . 1 . . . . . . . . . . . . . Route ------- -11/Scrapyard -10/Materials (discovered 2 exits: *Mat / *Min) -10/Mines (discovered 2 exits: *Mat x2) -9/Materials (discovered 3 exits: *Mat / *Min / *Sto) -9/Storage (discovered 2 exits: *Mat / Gar) -9/Garrison (discovered 2 exits: *Mat x2) -8/Materials (discovered 2 exits: *Fac / Gar) -8/Garrison (discovered 3 exits: *Fac x3) -7/Factory -7/Lower Caves -7/Lower Caves (discovered 2 exits: *Fac / *Zio) -6/Factory (discovered 2 exits: *Low x2) -6/Lower Caves -6/Lower Caves (discovered 2 exits: *Fac / *Dat) -6/Data Miner -5/Proximity Caves -5/Factory (discovered 2 exits: *Fac / Gar) -5/Garrison (discovered 2 exits: *Fac x2) -5/Factory (discovered 3 exits: *Fac / *Upp x2) -5/Upper Caves -5/Upper Caves (discovered 2 exits: *Fac / *Zhi) -5/Zhirov -4/Proximity Caves -4/Factory (discovered 2 exits: *Ext x2) -4/Extension (discovered 2 exits: *Res / *Cet) -4/Cetus (discovered 2 exits: *Res / *Arc) -4/Archives (discovered 2 exits: *Res / *Hub) -4/Hub_04(d) (discovered 2 exits: *Res x2) -3/Research (discovered 3 exits: Arm / *Tes x2) -3/Testing (discovered 2 exits: *Res / Gar) -3/Garrison (discovered 2 exits: *Res x2) -2/Research History --------- Turn | Location | Event 23 | -11/Scrapyard | Discovered new exit (range 16) 58 | -11/Scrapyard | Entered Materials 306 | -10/Materials | Build established: Mutant 450 | -10/Materials | Discovered new exit (range 12) 587 | -10/Materials | Discovered new exit (range 12) 762 | -10/Materials | Entered Mines 790 | -10/Mines | Learned Materials stockpile data 846 | -10/Mines | Learned 2 Materials zone layouts 1021 | -10/Mines | Assisted by bots powering up and referring to "LRC-V3" 1244 | -10/Mines | Found a hidden stash of uninstalled traps 1383 | -10/Mines | Met a Derelict who couldn't figure out how to use a Trap Extractor 1591 | -10/Mines | Discovered new exit (range 7) 1595 | -10/Mines | Discovered new exit (range 10) 1757 | -10/Mines | Build established: Trapper-Mutant 1758 | -10/Mines | Entered Materials 1758 | -9/Materials | Evolved 2 slots: Utility x2 1759 | -9/Materials | Identified exit to Mines 2550 | -9/Materials | Identified exit to Storage 2571 | -9/Materials | Discovered new exit (range 16) 2674 | -9/Materials | Build established: Hauler-Mutant 2688 | -9/Materials | Repaired Lgt. Treads 2730 | -9/Materials | Central database locked down 2785 | -9/Materials | Entered Storage 2820 | -9/Storage | Identified exit to Garrison 2960 | -9/Storage | Repaired Hvy. EM Pulse Gun 3283 | -9/Storage | Discovered new exit (range 14) 3452 | -9/Storage | Lost 4 parts (2n1u1w) 3474 | -9/Storage | Destroyed 13 combat bots 3598 | -9/Storage | Core integrity fell below 50% 4047 | -9/Storage | Entered Garrison 4172 | -9/Garrison | Triggered checkpoint 4176 | -9/Garrison | Core integrity fell below 20% 4226 | -9/Garrison | Discovered new exit (range 9) 4279 | -9/Garrison | Triggered checkpoint 4419 | -9/Garrison | Discovered new exit (range 15) 4468 | -9/Garrison | Installed Relay Interface Framework 4576 | -9/Garrison | Triggered checkpoint 4638 | -9/Garrison | Garrison Relay disabled 4898 | -9/Garrison | Entered Materials 4898 | -8/Materials | Evolved 2 slots: Propulsion x1, Utility x1 5186 | -8/Materials | Build established: Scavenger-Mutant 5264 | -8/Materials | Discovered new exit (range 9) 5346 | -8/Materials | Garrison activated, responded to threat 5352 | -8/Materials | Identified exit to Garrison 5366 | -8/Materials | Entered Garrison 5366 | -8/Garrison | Accompanied by 1 ally 5434 | -8/Garrison | Triggered checkpoint 5565 | -8/Garrison | Destroyed 7 combat bots 5610 | -8/Garrison | Discovered new exit (range 9) 5680 | -8/Garrison | Triggered checkpoint 5748 | -8/Garrison | Discovered new exit (range 9) 5768 | -8/Garrison | Expanded RIF knowledge: Structural Interface 5824 | -8/Garrison | Triggered checkpoint 5974 | -8/Garrison | Discovered new exit (range 9) 6016 | -8/Garrison | Garrison Relay disabled 6072 | -8/Garrison | Entered Factory 6072 | -7/Factory | Evolved 2 slots: Utility x2 6338 | -7/Factory | Build established: Bothacker-Mutant 6702 | -7/Factory | Fabricated Hcp. Storage Unit (x1) 6753 | -7/Factory | Repaired Arm. Wheel 6845 | -7/Factory | Discovered new exit (range 13) 6962 | -7/Factory | Identified exit to Lower Caves 7557 | -7/Factory | Crushed by falling debris 7727 | -7/Factory | Entered Lower Caves 7727 | -7/Lower Caves | Accompanied by 3 allies 7990 | -7/Lower Caves | Attacked by a delusional Derelict stockpiling parts 8631 | -7/Lower Caves | Attracted the attention of an 0b10 checkpoint 8751 | -7/Lower Caves | Discovered new exit (range 12) 8785 | -7/Lower Caves | Identified exit to Lower Caves 8852 | -7/Lower Caves | Encountered a Warlord checkpoint 9426 | -7/Lower Caves | Entered another Lower Caves area 9426 | -7/Lower Caves | Accompanied by 3 allies 9427 | -7/Lower Caves | Encountered a Warlord checkpoint 9570 | -7/Lower Caves | Learned Factory terminal intel 9576 | -7/Lower Caves | Discovered new exit (range 6) 10249 | -7/Lower Caves | Discovered new exit (range 13) 10401 | -7/Lower Caves | Attacked by a delusional Derelict stockpiling Unaware 10417 | -7/Lower Caves | Identified exit to Zion 10847 | -7/Lower Caves | Identified exit to Factory 10876 | -7/Lower Caves | Entered Factory 10876 | -6/Factory | Accompanied by 6 allies 10876 | -6/Factory | Evolved 2 slots: Utility x2 10877 | -6/Factory | Loaded intel: 20 terminal locations 11064 | -6/Factory | Fabricated Lrn. Sensor Array? 11161 | -6/Factory | Fabricated Hcp. Storage Unit (x1) 11426 | -6/Factory | Fabricated Hcp. Storage Unit (x1) 11564 | -6/Factory | Identified exit to Lower Caves 12598 | -6/Factory | Entered Lower Caves 12598 | -6/Lower Caves | Accompanied by 2 allies 12930 | -6/Lower Caves | Learned Factory emergency access door positions 12955 | -6/Lower Caves | Learned Factory terminal intel 12992 | -6/Lower Caves | Found Alien Artifact 12992 | -6/Lower Caves | Identified Core Expander 12992 | -6/Lower Caves | Installed Core Expander, added new Power slot 13428 | -6/Lower Caves | Discovered new exit (range 12) 13458 | -6/Lower Caves | Identified exit to Lower Caves 13530 | -6/Lower Caves | Learned 8 Factory zone layouts 13670 | -6/Lower Caves | Entered another Lower Caves area 13670 | -6/Lower Caves | Accompanied by 3 allies 13752 | -6/Lower Caves | Discovered new exit (range 9) 13781 | -6/Lower Caves | Build established: Trapper-Mutant 14243 | -6/Lower Caves | Build established: Bothacker-Mutant 14259 | -6/Lower Caves | Discovered new exit (range 14) 14522 | -6/Lower Caves | Entered Data Miner 14522 | -6/Data Miner | Accompanied by 1 ally 14522 | -6/Data Miner | Discovered new exit (range 6) 14553 | -6/Data Miner | Met Data Miner 14586 | -6/Data Miner | Learned location of Section 7 (-2) 14586 | -6/Data Miner | Acquired the access code to Warlord's prototype stash 14610 | -6/Data Miner | Received God Mode back door access code from Data Miner 14789 | -6/Data Miner | Data Conduit disabled 15127 | -6/Data Miner | Entered Proximity Caves 15127 | -5/Proximity Caves | Accompanied by 1 ally 15212 | -5/Proximity Caves | Learned Factory garrison access intel 15216 | -5/Proximity Caves | P-70 Sage assimilated allied Extractor 5a 15534 | -5/Proximity Caves | Attracted the attention of an 0b10 outpost 15628 | -5/Proximity Caves | Destroyed 8 combat bots 15823 | -5/Proximity Caves | Discovered new exit (range 15) 15902 | -5/Proximity Caves | Attracted the attention of an 0b10 checkpoint 15969 | -5/Proximity Caves | Entered Factory 15969 | -5/Factory | Evolved 2 slots: Utility x2 15970 | -5/Factory | Identified exit to Factory 15972 | -5/Factory | Loaded intel: 20 terminal locations 15973 | -5/Factory | Loaded intel: 4 garrison access locations 17000 | -5/Factory | Lost 4 parts (3u1w) 17145 | -5/Factory | Repaired Hrd. Medium Armor Plating? 17216 | -5/Factory | Build established: Trapper-Mutant 17270 | -5/Factory | Repaired Imp. Proton Missile Launcher 17401 | -5/Factory | Identified exit to Garrison 17477 | -5/Factory | Entered Garrison 17477 | -5/Garrison | Accompanied by 1 ally 17591 | -5/Garrison | Triggered checkpoint 17594 | -5/Garrison | Triggered checkpoint 17620 | -5/Garrison | Destroyed 9 combat bots 17694 | -5/Garrison | Lost 5 parts (2n2u1w) 17782 | -5/Garrison | Triggered checkpoint 17897 | -5/Garrison | Discovered new exit (range 9) 18037 | -5/Garrison | Discovered new exit (range 10) 18053 | -5/Garrison | Identified exit to Factory 18067 | -5/Garrison | Expanded RIF knowledge: Alert ID Control 18129 | -5/Garrison | Build established: Bothacker-Mutant 18431 | -5/Garrison | Triggered checkpoint 18466 | -5/Garrison | Garrison Relay disabled 18706 | -5/Garrison | Triggered checkpoint 18904 | -5/Garrison | Entered Factory 18970 | -5/Factory | Identified exit to Garrison 19356 | -5/Factory | Identified exit to Upper Caves 19436 | -5/Factory | Fabricated Exp. Sensor Array (x1) 19504 | -5/Factory | First assault squad dispatched 19612 | -5/Factory | Local fabrication network quarantined 19933 | -5/Factory | Discovered exit to Factory (range 16) 19975 | -5/Factory | P-70 Sage assimilated allied Smith 6a 20009 | -5/Factory | P-70 Sage assimilated allied Smith 6b 20139 | -5/Factory | Found Prototype Processor 20198 | -5/Factory | Entered Upper Caves 20198 | -5/Upper Caves | Accompanied by 3 allies 20381 | -5/Upper Caves | Spotted B-75 Beast 20461 | -5/Upper Caves | Destroyed B-75 Beast 20668 | -5/Upper Caves | Identified Exp. Targeting Computer 21097 | -5/Upper Caves | Build established: Scavenger-Mutant 21176 | -5/Upper Caves | Discovered new exit (range 8) 21402 | -5/Upper Caves | Learned Factory emergency access door positions 22181 | -5/Upper Caves | Identified exit to Upper Caves 22182 | -5/Upper Caves | Entered another Upper Caves area 22182 | -5/Upper Caves | Accompanied by 1 ally 22260 | -5/Upper Caves | Discovered exit to Factory (range 15) 22273 | -5/Upper Caves | Build established: Bothacker-Mutant 22319 | -5/Upper Caves | Attracted the attention of an 0b10 outpost 22324 | -5/Upper Caves | Core integrity fell below 50% 22378 | -5/Upper Caves | Destroyed 7 combat bots 22877 | -5/Upper Caves | Learned Factory machine intel 23007 | -5/Upper Caves | Discovered new exit (range 5) 23274 | -5/Upper Caves | Identified exit to Zhirov 23277 | -5/Upper Caves | Entered Zhirov 23277 | -5/Zhirov | Accompanied by 3 allies 23277 | -5/Zhirov | Discovered new exit (range 3) 23301 | -5/Zhirov | Met Zhirov 23329 | -5/Zhirov | Learned location of Quarantine (-2) 23329 | -5/Zhirov | Learned location of Testing (-3) 23329 | -5/Zhirov | Learned location of Command (-1) 23337 | -5/Zhirov | Zhirov requested help retrieving the SGEMP Prototype 23359 | -5/Zhirov | Found Alien Artifact 23359 | -5/Zhirov | Identified Integrated Reactor 23359 | -5/Zhirov | Installed Integrated Reactor, increased core energy generation (+2%) 23444 | -5/Zhirov | Found Alien Artifact 23495 | -5/Zhirov | Identified exit to Proximity Caves 23496 | -5/Zhirov | Entered Proximity Caves 23496 | -4/Proximity Caves | Accompanied by 3 allies 23837 | -4/Proximity Caves | Spotted B-86 Titan 24701 | -4/Proximity Caves | Discovered exit to Factory (range 3) 24774 | -4/Proximity Caves | Entered Factory 24774 | -4/Factory | Accompanied by 1 ally 24774 | -4/Factory | Evolved 2 slots: Propulsion x1, Utility x1 24775 | -4/Factory | Identified exit to Extension 24777 | -4/Factory | Loaded intel: 256 machine locations 25023 | -4/Factory | Garrison activated, responded to threat 25175 | -4/Factory | Lost 3 parts (1n2u) 25200 | -4/Factory | Garrison activated, responded to threat 25252 | -4/Factory | Lost 3 parts (1n1u1w) 25263 | -4/Factory | Destroyed 14 combat bots 25279 | -4/Factory | Identified Transdimensional Reconstructor 25279 | -4/Factory | Warped through subspace 25396 | -4/Factory | Fabricated Arm. Huge Wheel (x2) 25496 | -4/Factory | Repaired Hvy. Shock Bomb Launcher? 25539 | -4/Factory | Build established: Hauler-Mutant 25827 | -4/Factory | Fabricated Exp. Signal Interpreter? 25865 | -4/Factory | Fabricated Hcp. Storage Unit (x1) 26001 | -4/Factory | Entered Extension 26182 | -4/Extension | Rescued a captive Derelict 26182 | -4/Extension | Rescued a captive Derelict 26413 | -4/Extension | Rescued a captive Derelict 26429 | -4/Extension | Rescued A7 26446 | -4/Extension | Rescued a captive Derelict 26447 | -4/Extension | Rescued a captive Derelict 26463 | -4/Extension | Rescued a captive Derelict 26464 | -4/Extension | Rescued a captive Derelict 26785 | -4/Extension | Spotted B-86 Titan 26798 | -4/Extension | Core integrity fell below 50% 26801 | -4/Extension | Allies destroyed B-86 Titan 26806 | -4/Extension | Spotted B-86 Titan 26818 | -4/Extension | Allies destroyed B-86 Titan 26880 | -4/Extension | Rescued a captive Derelict 26881 | -4/Extension | Rescued a captive Derelict 27568 | -4/Extension | Discovered new exit (range 10) 27570 | -4/Extension | Discovered new exit (range 6) 27582 | -4/Extension | Identified exit to Cetus 27607 | -4/Extension | Entered Cetus 27607 | -4/Cetus | Accompanied by 13 allies 27612 | -4/Cetus | Acquired a Cetus Manufacturing Module code from A7 27631 | -4/Cetus | Spotted Cetus Guard 27631 | -4/Cetus | Spotted Cetus Guard 27634 | -4/Cetus | Spotted Cetus Guard 27639 | -4/Cetus | Spotted Cetus Guard 27647 | -4/Cetus | Allies destroyed Cetus Guard 27650 | -4/Cetus | Allies destroyed Cetus Guard 27650 | -4/Cetus | Allies destroyed Cetus Guard 27657 | -4/Cetus | Allies destroyed Cetus Guard 27762 | -4/Cetus | Started Cetus Manufacturing Module 27778 | -4/Cetus | Escorted A7 to Cetus Mainframe 27787 | -4/Cetus | Manufactured an Enhanced Grunt 27807 | -4/Cetus | Discovered new exit (range 16) 27812 | -4/Cetus | Manufactured an Enhanced Grunt 27837 | -4/Cetus | Manufactured an Enhanced Grunt 27843 | -4/Cetus | Spotted Cetus Guard 27843 | -4/Cetus | Spotted Cetus Guard 27844 | -4/Cetus | Spotted Cetus Guard 27844 | -4/Cetus | Spotted Cetus Guard 27852 | -4/Cetus | Destroyed Cetus Guard 27853 | -4/Cetus | Destroyed Cetus Guard 27858 | -4/Cetus | Destroyed Cetus Guard 27860 | -4/Cetus | Destroyed Cetus Guard 27862 | -4/Cetus | Manufactured an Enhanced Grunt 27869 | -4/Cetus | Discovered new exit (range 16) 27882 | -4/Cetus | Lost 3 parts (1n2u) 27885 | -4/Cetus | Met Revision 17 27887 | -4/Cetus | Manufactured an Enhanced Grunt 27988 | -4/Cetus | Identified exit to Archives 28018 | -4/Cetus | Entered Archives 28018 | -4/Archives | Accompanied by 8 allies 28023 | -4/Archives | Received a hacking code to weaken MAIN.C 28090 | -4/Archives | Discovered new exit (range 15) 28113 | -4/Archives | Discovered new exit (range 16) 28142 | -4/Archives | Identified exit to Hub_04(d) 28148 | -4/Archives | Entered Hub_04(d) 28148 | -4/Hub_04(d) | Accompanied by 6 allies 28175 | -4/Hub_04(d) | Discovered new exit (range 11) 28714 | -4/Hub_04(d) | Spotted B-86 Titan 28855 | -4/Hub_04(d) | Discovered new exit (range 13) 28875 | -4/Hub_04(d) | Identified exit to Garrison 28900 | -4/Hub_04(d) | Network Hub disabled 28900 | -4/Hub_04(d) | Spotted Lightning 28900 | -4/Hub_04(d) | Spotted Lightning 28900 | -4/Hub_04(d) | Spotted Lightning 28908 | -4/Hub_04(d) | Spotted Lightning 28908 | -4/Hub_04(d) | Spotted Lightning 28908 | -4/Hub_04(d) | Spotted Lightning 28908 | -4/Hub_04(d) | Spotted Lightning 28908 | -4/Hub_04(d) | Spotted Lightning 28912 | -4/Hub_04(d) | Spotted Lightning 28912 | -4/Hub_04(d) | Spotted Lightning 28912 | -4/Hub_04(d) | Spotted Lightning 28915 | -4/Hub_04(d) | System corruption reached 10% 28924 | -4/Hub_04(d) | Spotted Lightning 28947 | -4/Hub_04(d) | Identified exit to Research 28949 | -4/Hub_04(d) | Entered Research 28949 | -3/Research | Evolved 2 slots: Utility x2 28950 | -3/Research | Identified exit to Armory 28966 | -3/Research | Lost 7 parts (1p1n3u2w) 29149 | -3/Research | Revision forces began assault on 0b10 29166 | -3/Research | Met up with Revision 17++ 29402 | -3/Research | Build established: Trapper-Mutant 29418 | -3/Research | Identified exit to Testing 29538 | -3/Research | Found Prototype Processor 29649 | -3/Research | Identified Spectral Analyzer 29649 | -3/Research | Research terminal network offline 29840 | -3/Research | Entered Testing 29910 | -3/Testing | Found Quantum Capacitor 30049 | -3/Testing | Found Prototype Ballistic Gun 30050 | -3/Testing | Identified Hyp. Multirail 30096 | -3/Testing | Spotted PD-XD1RWWLF9W 30101 | -3/Testing | Discovered new exit (range 10) 30261 | -3/Testing | Identified exit to Research 30300 | -3/Testing | Found Prototype Energy Cannon 30300 | -3/Testing | Identified Hpw. Disruptor Cannon 30585 | -3/Testing | Found Quantum Capacitor 30624 | -3/Testing | Lost 8 parts (3p4u1w) 30708 | -3/Testing | Repaired Hcp. Storage Unit 30750 | -3/Testing | Repaired Broken Hvy. Shock Bomb Launcher 30760 | -3/Testing | Scanned by Researcher 30863 | -3/Testing | Lost 5 parts (1p2n1u1w) 30933 | -3/Testing | Lost 3 parts (1n2u) 30953 | -3/Testing | Spotted Striker 30953 | -3/Testing | Spotted Striker 31132 | -3/Testing | Found Prototype Ballistic Cannon 31132 | -3/Testing | Identified Perforator 31164 | -3/Testing | Found Prototype Device 31202 | -3/Testing | Repaired Hcp. Storage Unit 31216 | -3/Testing | Repaired Hcp. Storage Unit 31278 | -3/Testing | Identified EM Dispersion Field 31286 | -3/Testing | Repaired Broken Imp. Matter Neutralizer 31372 | -3/Testing | Fabricated Hyp. Mass Driver (x2) 31397 | -3/Testing | Fabricated Arm. Huge Wheel (x2) 31424 | -3/Testing | Build established: Hacker-Mutant 31465 | -3/Testing | Found Prototype Launcher 31475 | -3/Testing | Identified Tactical Quantum Warhead 31588 | -3/Testing | Identified exit to Garrison 31626 | -3/Testing | Found Prototype Energy Cannon 31626 | -3/Testing | Identified Potential Cannon 31627 | -3/Testing | Core integrity fell below 50% 31630 | -3/Testing | Found Potential Cannon 31641 | -3/Testing | Garrison activated, responded to threat 31718 | -3/Testing | Lost 9 parts (2p2n3u2w) 31757 | -3/Testing | Entered Garrison 31816 | -3/Garrison | Lost 7 parts (2n4u1w) 31849 | -3/Garrison | System corruption reached 10% 31876 | -3/Garrison | Lost 3 parts (1p1u1w) 31925 | -3/Garrison | Triggered checkpoint 31925 | -3/Garrison | Triggered checkpoint 31945 | -3/Garrison | Core integrity fell below 20% 31949 | -3/Garrison | Triggered checkpoint 31976 | -3/Garrison | Destroyed 10 combat bots 31982 | -3/Garrison | Lost 10 parts (2p4n2u2w) 32170 | -3/Garrison | Build established: Scavenger-Mutant 32172 | -3/Garrison | Triggered checkpoint 32224 | -3/Garrison | Discovered exit to Research (range 12) 32361 | -3/Garrison | Discovered exit to Research (range 8) 32381 | -3/Garrison | Expanded RIF knowledge: Patrol Navigation 32442 | -3/Garrison | Entered Research 32442 | -2/Research | Accompanied by 1 ally 32442 | -2/Research | Evolved 2 slots: Utility x2 33387 | -2/Research | Lost 14 parts (1p2n7u4w) 33448 | -2/Research | Found Prototype Device 33448 | -2/Research | Identified Exp. Thermal Shield 33603 | -2/Research | Fabricated Hcp. Storage Unit (x1) 33622 | -2/Research | Fabricated Hcp. Storage Unit (x1) 34060 | -2/Research | Fabricated Exp. Transmission Jammer? 34085 | -2/Research | Core integrity fell below 50% 34085 | -2/Research | System corruption reached 10% 34099 | -2/Research | Core integrity fell below 20% 34113 | -2/Research | Spotted B-90 Cyclops 34127 | -2/Research | Destroyed by B-90 Cyclops with Nova Cannon Last Messages --------------- 34124_ HV Slug penetrates P-80 Master. 34124_ P-80 Master suffers critical hit. 34124_ Destroyed Adv. Heat Sink. 34124_ P-80 Master suffers critical hit. 34124_ Destroyed Imp. Antigrav System. 34124_ W-44 Eye distress signal jammed. 34124_ U-05 Engineer lays Concrete. 34125_ W-44 Eye distress signal jammed. 34125_ U-05 Engineer lays Concrete. 34125_ W-44 Eye distress signal jammed. 34125_ U-05 Engineer lays Concrete. 34126_ System corrupted: Hyp. Railgun targeting data glitched. 34126_ HV Slug penetrates P-80 Master. 34126_ P-80 Master suffers critical hit. 34126_ P-80 Master destroyed. 34126_ Switching to secondary target: B-90 Cyclops. 34126_ HV Slug penetrates B-90 Cyclops. 34126_ U-05 Engineer lays Concrete. 34126_ Adv. Transmission Jammer destroyed. 34126_ U-05 Engineer lays Concrete. Map ----- +----------------------------------------------------+ | ?????????????????????????????????????????????????? | | ?????????????????????????????????????????????????? | | ?????????????????????????????????????????????????? | | ?????????????????????????????????????????????????? | | ?????????????????????????????????????????????????? | | ????????????????????? ?????????????????????????? | | ???????????????????# ?????????????????????????? | | ???????????????????+ ?????????????????????????? | | ???????????????????# ?????????????????????????? | | ???????????????????# ?????????????????????????? | | ???????????????????# ?????????????????????????? | | ???????????????????# #????????????????????????? | | ???????????????????# #????????????????????????? | | ???????????????????# #????????????????????????? | | ???????????????????# ##########???????????????? | | ???????????????????# # #???????????????? | | ???????????????????# # #???????????????? | | ???????????????????# # """#???????????????? | | ???????????????????# # """# ??????????? | | ???????????????????# # """# ??????????? | | ???????????????????# # """# ??????????? | | ???????????????????# !+ """# ??????????? | | ???????????????????# # = # #??????????? | | ???????????? ????#*[ =# # #??????????? | | ???????? ###%%[%########## #??????????? | | ???????? !!=[*[%[=@*! #??????????? | | ???????? [!%!!%[[%%uuu #??????????? | | ???????? =%!%%[[%u ! ############ | | ????????? """ """[%!= ! %|""""" # | | ???????????"" """ != ! """F"" A# | | ???????????"" """BB%= """!"" # | | ??????????? BB # | | ????????????? # | | ?????????????? # | | ????????????? uR + | | ????????????? u # | | ?????????????############## % # | | ??????????????????????????# # | | ???????????????????######## % # | | ???????????????????# % # | | ???????????????????# ############ | | ???????????????????# % #??# | | ???????????????????# #??# | | ?????????????????####+##### ########??# = | | ?????????????????# [%%% =*# #?????????# | | ?????????????????# % !! !# #?????????# | | ?????????????????#"" !!% /% #????????########+# | | ?????????????????# %[*#%%%*#????????# % | | ?????????????????# !=#%% #????????# | | ????????????????## #% % #????????# | +----------------------------------------------------+ Best States ------------- Heat Dissipation 125 Coolant Potential 65 Energy Generation 61 Energy Capacity 1180 Matter Stores 300 Matter Capacity 300 Sight Range 16 Robot Scan Range 30 Terrain Scan Density 10 Jamming Range 16 Cloak Strength 3 Power Amplification 30 Additional Mass Support 20 Armor Coverage 1275 Resistance: TH 30 Resistance: EX 50 Resistance: EM 75 Core Shielding 30 Weapon Cycling 25 Evasion (%) 44 Targeting Accuracy 6 Target Analysis 8 Core Analysis 8 Armor Integrity Analysis 50 Recoil Reduction 4 Particle Charging 25 Offensive Hacking 28 Defensive Hacking 26 Item Schematics ----------------- Hcp. Storage Unit | -10/Materials | Hacked Imp. Trap Extractor | -9/Materials | Scanalyzed Imp. Signal Interpreter | -9/Materials | Scanalyzed Adv. Sensor Array | -8/Materials | Hacked Lrn. Sensor Array | -7/Factory | Hacked Combat Drone Bay | -6/Data Miner | Free Lgt. Regenerative Plating | -6/Data Miner | Free Triangulator | -6/Data Miner | Free Exp. Sensor Array | -6/Data Miner | Free Exp. Terrain Scan Processor | -6/Data Miner | Free Tactical Coordination Suite | -6/Data Miner | Free Exp. Transmission Jammer | -6/Data Miner | Free Cloaking Device | -6/Data Miner | Free Mni. Smartbomb Launcher | -6/Data Miner | Free Kinetic Spear | -6/Data Miner | Free Arm. Huge Wheel | -5/Factory | Hacked Exp. Signal Interpreter | -5/Factory | Hacked Imp. Remote Datajack | -5/Factory | Scanalyzed Hyp. Gauss Cannon | -5/Factory | Scanalyzed Imp. Datajack | -5/Factory | Scanalyzed Assault Drone Bay | -5/Zhirov | Free Exp. Heat Sink | -5/Zhirov | Free Exp. Optical Array | -5/Zhirov | Free Imp. Arc Thrower | -5/Zhirov | Free Hyp. Mass Driver | -3/Research | Scanalyzed Robot Schematics ------------------ O-16 Technician | -9/Materials | Hacked M-14 Sweeper | -8/Materials | Hacked H-66 Slayer | -6/Factory | Hacked S-27 Virus | -6/Data Miner | Free G-50 Soldier | -6/Data Miner | Free X-72 Disruptor | -6/Data Miner | Free P-70 Sage | -6/Data Miner | Free I-36 Angel | -6/Data Miner | Free Fabricated ------------ Hcp. Storage Unit | x1 | -7/Factory Lrn. Sensor Array | x1 | -6/Factory Hcp. Storage Unit | x1 | -6/Factory Hcp. Storage Unit | x1 | -6/Factory Exp. Sensor Array | x1 | -5/Factory Arm. Huge Wheel | x2 | -4/Factory Exp. Signal Interpreter | x1 | -4/Factory Hcp. Storage Unit | x1 | -4/Factory Hyp. Mass Driver | x2 | -3/Testing Arm. Huge Wheel | x2 | -3/Testing Hcp. Storage Unit | x1 | -2/Research Hcp. Storage Unit | x1 | -2/Research Exp. Transmission Jammer | x1 | -2/Research Alien Tech Used ----------------- Core Expander Integrated Reactor Transdimensional Reconstructor Achievements -------------- None Challenges ------------ None Game ------ Seed UltimatePoweredFalx Manual? 0 Play Time 04:57:15 Cumulative 548.3 hours Start 2020.05.16 @ 15:53:54 End 2020.05.16 @ 21:17:24 Sessions 3 Manual Loads 0 Difficulty Rogue Special Mode None Game No. 411 Rogue 407 Adventurer 4 Explorer 0 Win Type - Total 61 Types 50/4/3/2/2/0/0 Lore% 94 Gallery% 96 Achievement% 96 Wizard Run 0 Options --------- ASCII 0 Keyboard 1 Movement Vi Keybinds 0 Fullscreen 0 Font 16/Terminus Map View 76x50 Tactical HUD 1 Map Filters NONE Filters NONE Steam 1 RUN: 81da4b89-a36e-4a8a-96af-159184d6241e